Workbook

Sheet Introduction
B8: Designing with the UCC28600 Quasi-Resonant Flyback Converter
C11: This worksheet is designed for use with Microsoft Excel 5.0 or later. Its use is intended to assist power supply designers in their | P11: © 2013
C12: routine, day-to-day calculations.
P13: slvs104J
C15: Component values are calculated as ideal, not to nearest production values
D18: Disclaimer
D19: This product is designed as an aid for customers of Texas Instruments. No warranties, either express
D20: or implied, with respect to this software or its fitness for any particular purpose is claimed by Texas
D21: Instruments or the author. The software is licensed solely on an "as is" basis. The entire risk as to its
D22: quality and performance is with the customer.

Sheet Instructions
B2: QR Design Tool Instructions
B4: Be sure to Enable the Macros and to have a check in the AnalysisT oolPak box in the Add-Ins section of the Tools menu.
B6: Quasi-Resonant (QR) flyback converter design is an iterative process. This design tool reduces the hardware iterations by simulating the steady state operating maps that show the converter modes under different input and load conditions. Design adjustments can be explored in order to optimize the power system. Although the design spreadsheet is organized around a bridge rectifier – bulk capacitor line rectifier, it can be used for fixed output Power Factor Corrector (PFC) or voltage follower PFC systems. Systems with PFC must allow the QR flyback stage to start-up under the low ac line condition. However, the steady state conduction losses to the QR flyback stage will only occur at the PFC bulk capacitor voltage levels.
B8: To use this tool, enter the voltages, power levels and converter estimates into the appropriate spaces of the QR Design Tool worksheet. This step also requires an initial selection of the power MOSFET and the output rectifier. Enter data in the cells with the BLUE text; the calculated values are in the cells with the RED text. The parameters for the UCC28600 are already included. The design tool will generate a recommended design that includes transformer parameters. Verify that the current and voltage stresses are compatible with the MOSFET and output rectifier that were initially selected. The recommended values in the design may not be practical due to integer transformer turns, standard values, etc. Yet the operation of the converter can be significantly altered by using the closest parameter.
B10: At this point, design the transformer using the magnetizing inductance and approximate turns ratio that was recommended by the QR Design Tool worksheet. The Magnetic Specification sheet can be printed and used as a guideline for the recommended transformer design. The next step is to see how the design performs using the QR Simulator worksheet.
B12: The QR Simulator will carry over the Converter Requirements, MOSFET Specifications, Diode Data and the UCC28600 Characteristics. The transformer information and the programming components, RS (current sense resistance), RPL (power limit programming), ROVP1 and ROVP2 (over-voltage programming resistors) must be entered by the user. The recommended values are shown beside the cells as a reminder for the ideal values.
B14: After entering the final values, examine the operating maps. They reveal the boundaries of the different modes of operation. The operating maps portray the power levels, peak switch currents, feed back voltages and switching frequencies for the full array of line voltages and loads that the converter would experience. These maps can be used to explore design alternatives, such as different current sense resistor values, different transformers, etc. For example, it might be desirable to change the power level where burst mode occurs in order to avoid audio noise at a common load operating point. The QR Simulator worksheet also shows rms currents, whether the converter is in power limit, the operational mode among other potentially useful data that can be used to optimize the converter performance in a specific power system.
B16: For PFC systems that have a fixed bulk voltage, estimate the PFC output voltage at the peak of its ripple. Calculate the equivalent ac voltage to achieve that maximum voltage level. Enter that ac voltage as the VAC(max) level. Enter the minimum operational ac line voltage as the VAC(min) level because the QR Flyback must power up correctly in order to start the PFC stage.
B18: For voltage follower PFC systems, estimate the PFC output voltage at the peak of its ripple during maximum line conditions. Calculate the equivalent ac voltage to achieve that maximum voltage level. Enter that ac voltage as the VAC(max) level. Enter the minimum ac line voltage as the VAC(min) level because the QR Flyback must power up correctly in order to start the PFC stage. In the least, converter must be designed to operate at safe temperatures under the steady state operating rms currents that occur at the minimum PFC voltage and at the maximum PFC voltage. The data tables in the QR Simulator worksheet can assist in finding the required values.

Sheet QR Design Tool
B1: UCC28600 Design Spreadsheet
B2: TI Literature Number - SLVC104J - April 2017
B3: Design Synthesis - type in the blue data and the spreadsheet responds with the calculated red data. Bold RED results are recommended COMPONENT VALUES.
I6: Comments on REQUIRED USER INPUTS:
I7: ALL CELLS WITH BLUE TEXT MUST BE VERIFIED AND UPDATED BY THE USER FOR EACH DESIGN.
B9: Converter Requirements
B10: POUT(max) limit | C10: 84 | D10: W | I10: - POUT(max) limit is maximum output power of converter (enter, in W, into cell C10)
B11: RLOAD = | C11: =(Vout^2)/Pout -> 6.857142857 | D11: W, VOUT2/POUT | I11: - POUT during SS, default: use POUT(max) if design will start into full load (enter, in W, into cell C11)
B12: efficiency ratio | C12: 0.8 | I12: - efficiency ratio is the Expected converter efficiency (enter, in decimal form, in cell C12)
B13: PIN = | C13: =Pout/eff_est -> 105 | D13: W | I13: - Resultant input power from User input (calculated by spreadsheet)
B14: VAC(min) | C14: 165 | D14: VAC | E14: VBULK(min_pk) = | F14: =Vac_min*SQRT(2) -> 233.3452378 | G14: V, VAC(min)Ö2 | I14: - VAC(min) is the minimum AC line input voltage (enter, in VAC, in cell C14)
B15: VAC(max) ** | C15: 550 | D15: VAC | E15: VBULK(min_valley) = | F15: =Vbulkmin*(1-(Vbulkripple/100)) -> 175.0089283 | G15: V, minus ripple | I15: - **For systems with a PFC front end, the VAC(max) value entered into cell C15 should be equivalent to the maximum regulated output voltage of the PFC stage divided by SQRT(2), as calculated by the USER, otherwise, for systems that DO NOT have a PFC input stage, enter the maximum AC line input voltage. (enter, in VAC, in cell C15)
B16: VBULK(ripple), %pp | C16: 25 | D16: % | E16: VBULK(max_pk) = | F16: =Vacmax*SQRT(2) -> 777.8174593 | G16: V, VAC(max)Ö2 | I16: - VBULK(ripple), %pp is the ripple voltage on the input voltage (enter the percentage of peak to peak ripple voltage on the input bus in cell C16)
B17: VAC(max) shutdown margin % | C17: 5 | D17: % | E17: VBULK(ov) = | F17: =Vbulkmax*(1+inputovp/100) -> 816.7083323 | G17: V, plus ripple | I17: - VAC(max) shutdown margin % is the User programmable Line Over Voltage Protection limit (enter the percentage of margin that the line voltage can exceed VAC(max) before initiating Line OVP, in cell C17)
B18: Required INPUT CAPACITOR | C18: =Lookuptables!O21 -> 68 | D18: uF | I18: INPUT CAPACITOR: required minimum input capacitor to meet required VBULK(min_valley) for power stage
B19: Actual Input Capacitor Used | C19: 68 | D19: uF | I19: Actual INPUT CAPACITOR used for design. Actual value required for power stage calculations
B20: Actual minimum bulk voltage | C20: =IF(Lookuptables!S58=Lookuptables!O58,Vbulk_valley,Lookuptables!S58) -> 175.0089283 | D20: V | I20: Actual minimum bulk voltage resultant from selection of input capacitor value
B21: fS(min) | C21: 80000 | D21: Hz, low line, max load | E21: tS(min) = | F21: =1/fvmin_maxload -> 1.25e-05 | G21: s | I21: - Minimum switching frequency at maximum load, minimum input should not be less than 80kHz. Locking this value to 80kHz ensures proper timing for the internal logic of the controller and is not user programable
B22: VOUT | C22: 24 | D22: VDC | I22: - VOUT is the regulated output voltage of the converter (enter, in Volts, in cell C19)
B23: VOUT(ripple), max pp | C23: 0.05 | D23: V | I23: - VOUT(ripple), max pp is the maximum peak to peak output ripple of the converter output, i.e. usually equal to 1% of the regulated output voltage (enter, in Volts, in cell C20)
B24: VOUT(shutdown) | C24: 28 | D24: V | I24: - VOUT(shutdown) is the User programmable Output Over Voltage Protection limit (enter, in Volts, the maximum output voltage that will initiate Load OVP in cell C21)
B25: Load step, Watts | C25: 84 | D25: W | I25: - Load step is the maximum output load transient, in Watts, i.e. no-load to full load (enter, in Watts, in cell C22)
B26: max dVOUT due to Load step | C26: 0.2 | D26: V | I26: - max dVOUT due to Load step is the maximum output voltage deviation due to a transient or load step (enter, in Volts, in cell C23)
B27: estimated fCO, Hz | C27: 3000 | D27: Hz | I27: - estimated fCO is the desired crossover frequency of the control loop, usually between 2kHz and 3kHz (enter, in Hertz such as 3.0E+3, in cell C24)
B28: VBIAS at full load | C28: 18 | D28: V | I28: - VBIAS is the output of the Aux winding of the Flyback Transformer, used to BIAS the UCC28600 and, if used, also the PFC controller. VBIAS must be equal to the maximum UVLO stop threshold of the UCC28600 (equal to 9.3V) or the maximum start up voltage of the PFC controller, whichever is greater. (enter, in Volts, in cell C25)
B29: Snubber overshoot % of reflected VOUT | C29: 50 | D29: % | I29: - Snubber overshoot % of reflected VOUT is used to determine the snubber components. The percentage value entered in this cell will be used to determine the clamp voltage, taking into account the derated VDS of the switch, the maximum input voltage, and the reflected output voltage. Recommended 50% as default value. (enter, as a percentage, in cell C26)
B32: MOSFET Specifications | I32: The User selects a MOSFET for the design and inputs the FET's characteristics:
B33: VDS(max) rating | C33: 1155 | D33: V | I33: - VDS(max) rating is the chosen FET's drain to Source maximum voltage rating (enter, as Volts, in cell C30)
B34: VDS derate % | C34: 15 | D34: % | I34: - VDS derate % is the User chosen derating (for safety margin) of the VDS voltage on the FET (enter, as a percentage, in cell C31)
B35: VDS(max) limit = | C35: =Vdsrating*(1-(FETderating/100)) -> 981.75 | D35: V | I35: - Resultant maximum allowed voltage on switch due to User selected derating
B36: COSS estimate, at VDS test V | C36: 7.2e-12 | D36: F | E36: VDS test V | F36: 25 | G36: V | I36: - COSS is the output capacitance of the chosen MOSFET as stated in the MOSFET data sheet (enter, in Farads, in cell C33). VDS test V is the defined voltage, found in the MOSFET data sheet, that the COSS specification is tested at (enter, in Volts, in cell F33).
B37: Co', F-sqrt(V) = | C37: =Coss*SQRT(Vcoss_test) -> 3.6e-11 | D37: F
B38: CDS, stray | C38: 7e-13 | D38: F | I38: - CDS, stray is the estimated parasitic Drain to Source capacitance (enter, in Farads, in cell C35) ex.TO-220 tab to GND is about 25 pF
B39: CISS | C39: 2.75e-10 | D39: F | I39: - CISS is the input capacitance of the chosen MOSFET as stated in the MOSFET data sheet (enter, in Farads, in cell C36).
B40: Qg | C40: 5e-09 | D40: C | I40: - Qg is the total gate charge of the chosen MOSFET as stated in the MOSFET data sheet (enter, in Cou;ombs, in cell C37).
B41: Transformer Estimates
B42: Leakage to magnetizing inductance % | C42: 2.5 | D42: %mag Ind | E42: Leakage to magnetizing inductance ratio = | F42: =leakage_percent/100 -> 0.025 | I42: - Leakage to magnetizing inductance % is the desired magnetizing inductance of the Flyback transformer (enter, as a percent, in cell C39)
B45: Diode Estimates
B46: VF | C46: 0.7 | D46: V | I46: - VF is the forward voltage drop of the User-selected output rectifier as found in the rectifier data sheet (enter, as a voltage, in cell C43)
B49: UCC28600 Parameters | G49: Internal IC parameters | I49: - The parameters within the blue box are internal to the UCC28600 and are not User programmable.
B50: VFB, no load | C50: 4.87 | D50: V, = VREF in chip, @ no load
B51: RFB | C51: 20000 | D51: W, internal to chip
B52: VFB at Burst/FFM boundary | C52: 1.4 | D52: V
B53: ACS(FB) | C53: 2.5 | D53: Gain, VFB/VCS
B54: VCS(OS), CS offset volts | C54: 0.4 | D54: V, typ value from data sheet
B55: VPL, power limit | C55: 1.2 | D55: V, typical CS value during power limit
B56: VPL - VCS(OS) | C56: =Vpl-Vcs_os -> 0.8 | D56: V, CS working range
B57: VFB @ power limit | C57: =Vpl*Acs_fb -> 3 | D57: V, VPL X ACS(FB)
B58: VFB at FFM boundary | C58: 2 | D58: V
B59: fQR(max) clamp | C59: 130000 | D59: Hz
B60: fQR(min) clamp | C60: 40000 | D60: Hz
B61: IOVP(line) | C61: 0.00045 | D61: A, Line OVP typical value in data sheet
B62: VOVP(on), ON state | C62: -0.025 | D62: V, typ VOVP OUT = HIGH
B63: VOVP(load) | C63: 3.75 | D63: V, Load OVP typical value in data sheet
B64: IPL(CS)/IOVPon), current gain during OUT = ON state | C64: 0.5 | D64: 150 mA/300 mA
B65: VCS at DCM/FFM | C65: =(Vfb_ffm/Acs_fb)-Vcs_os -> 0.4 | D65: V, (VFB/ACS(FB)) - VCS(OS)
B66: IP/IP(max) at DCM/FFB boundary | C66: =Vcs/Vcs_wr -> 0.5
B67: VCO gain, TS/VFB | C67: =((1/fmax_clamp)-(1/fmin_clamp))/(Vfb_ffm-Vfb_burst) -> -2.884615385e-05
B68: VCO offset, TS(VFB = 0) | C68: =((Vfb_ffm/fmin_clamp)-(Vfb_burst/fmax_clamp))/(Vfb_ffm-Vfb_burst) -> 6.538461538e-05 | D68: V
B69: ISS(chg) | C69: 6e-06 | D69: A, SS charge current
B73: Resulting Converter Features | I73: Note: RS and RPL and the snubber follow simulation because the results are used in their calculation.
B74: VXFMR, reflect | C74: =(Vdsmax-Vbulkmax)/(1+snub_percent/100) -> 135.9550271 | D74: V | I74: - calculated allowable reflected output voltage
B75: VDS1(OS) | C75: =(snub_percent/100)*Vflyback -> 67.97751356 | D75: V | I75: - calculated Drain-Source overshoot voltage
B76: ZVS at VAC(min_valley)? | C76: =IF(Vflyback>C20,TRUE,FALSE) -> FALSE | I76: - TRUE only if VXFMR,reflect > VBULK(min_valley), FALSE = valley switching
B77: ZVS at VAC(max_pk)? | C77: =IF(Vflyback>Vbulkmax,TRUE,FALSE) -> FALSE | I77: - TRUE only if VXFMR,reflect > VBULK(max_pk), FALSE = valley switching
B78: COSS @ VAC(min) | C78: =IF(ZVS_vmin=TRUE, Cosseq*SQRT(C20+Vflyback)/(2*Vflyback),Cosseq*(SQRT(C20-Vflyback)-SQRT(C20+Vflyback))/(-2*Vflyback)) -> 1.507317892e-12 | D78: F | I78: - calaculated circuit capacitances
B79: CDS(total) @ VAC(min) | C79: =Coss_vmin+Cstray -> 2.207317892e-12 | D79: F
B80: COSS @ VAC(max) | C80: =IF(ZVS_vmax=TRUE,Cosseq*SQRT(Vbulkmax+Vflyback)/(2*Vflyback),Cosseq*(SQRT(Vbulkmax-Vflyback)-SQRT(Vbulkmax+Vflyback))/(-2*Vflyback)) -> 6.479053199e-13 | D80: F
B81: CDS(total) @ VAC(max) | C81: =C80+Cstray -> 1.34790532e-12 | D81: F
B82: RLOAD, reflect to pri | C82: =(Vflyback^2)/Pin_est -> 176.0358991 | D82: W | I82: - calculated maximum load impedance based upon the reflected output voltage
B83: tON / sqrt(L) | C83: =(1/C20)*SQRT(2*Tvmin_maxload*Pin_est) -> 0.0002927550858 | D83: s | I83: - calculated timing segments normalized with respect to the primary inductance
B84: tLEAKAGE / sqrt(L) | C84: =SQRT(leakagefactor*Cds_total)+SQRT(1/(2*Pin_est*Tvmin_maxload))*Cds_total*(C20+Vflyback) -> 1.917501202e-07 | D84: s
B85: tOFF / sqrt(L) | C85: =(1/Vflyback)*SQRT(2*Tvmin_maxload*Pin_est) -> 0.0003768507492 | D85: s
B86: tVALLEY / sqrt(L) | C86: =IF(ZVS_vmax=TRUE,SQRT(Cds_total)*ACOS(Vbulkmax/Vflyback),PI()*SQRT(Cds_total)) -> 3.647367856e-06 | D86: s
B87: min NPRI / NSEC | C87: =Vflyback/(Vout+Vf) -> 5.504252111 | D87: turns, N = VXFMR/(VOUT+VF) | I87: - min NPRI / NSEC is the Minimum Turns Ratio for the Primary to Secondary Windings (this value is carried over to the Simulator page)
B88: min NPRI / NBIAS | C88: =Nps*(Vout/Vbias) -> 7.339002814 | D88: turns, NBIAS = N*(VOUT/VBIAS) | I88: - min NPRI / NBIAS is the Minimum Turns Ratio for the Primary to Bias (AUX) Windings (this value is inverted and carried over to the Simulator page)
B89: max Lpri at VAC(min) | C89: =(Tvmin_maxload/(C83+C84+C85+C86))^2*0.9 -> 0.000310068987 | D89: H | I89: - max L at VAC(max) is the Calculated Primary Inductance (this value is carried over to the Simulator page)
B90: LLEAKAGE(max) | C90: =leakagefactor*C89 -> 7.751724676e-06 | D90: H | I90: - LLEAKAGE(max) is the Allowable Leakage Inductance (this value is carried over to the Simulator page)
B91: Total L input | C91: =C89+C90 -> 0.0003178207117 | D91: H | E91: Lpri+Lleakage
B92: 1+ROVP1/ROVP2 | C92: =((Vbias/Vout)*(Vf+Vout_ovp))/Vovp_load -> 5.74
B93: ROVP1 | C93: =(Vovp_on*(((Vbias/Vout)*(Vf+Vout_ovp))/Vovp_load)/Iovp_line)+(LineOVP/(Npb*Iovp_line)) -> 246977.2971 | D93: W | I93: - ROVP1 is the ideal value of the top resistor on the OVP pin (this value is adjusted for actual turns ratio and carried over to the Simulator page)
B94: ROVP2 | C94: =(Rovp1/((((Vbias/Vout)*(Vf+Vout_ovp))/Vovp_load)-1)) -> 52104.91501 | D94: W | I94: - ROVP2 is the ideal value of the bottom resistor on the OVP pin (this value is adjusted for actual turns ratio and carried over to the Simulator page)
B97: Ideal Design Using MIN NPRI / NSEC and MAX L over VAC Range @ MAX Load
B98: Trial: the step number for the coresponding input voltage test condition | C98: VBULK: the voltage across the bulk capacitor, iterations begin at the minimum valley voltage | D98: VAC(equiv): the corresponding AC input voltage that would result in VBULK | E98: ZVS ?: if TRUE, converter is zero voltage switching, if FALSE, converter is Valley switching | F98: CDS, total: total drain to source capacitance | G98: IPEAK: calculated peak primary current at maximum load taking into account operating mode | H98: TON: calculated on time at maximum load | I98: TS: calculated switching period at maximum load | J98: IPRI(rms): primary side rms current | K98: TDEMAG: time required for the inductor to demagnetize at maximum load | L98: ISEC(rms): secondary side rms current at maximum load | M98: D: duty cycle
B99: Trial | C99: VBULK | D99: VAC(equiv) | E99: ZVS ? | F99: CDS, total | G99: IPEAK | H99: TON | I99: TS | J99: IPRI(rms) | K99: TDEMAG | L99: ISEC(rms) | M99: D | N99: VOUT/D | O99: resonant leakage | P99: resonant | Q99: TR, dMAG(valley) | R99: residue dMAG(l) | S99: Vv, valley VDS
C100: V | D100: V | F100: F | G100: A | H100: s | I100: s | J100: A, rms | K100: s | L100: A, rms | N100: V | O100: time TL1=Tr / (2pi) | P100: f, reset, Hz | Q100: seconds | R100: Amps | S100: Volts | T100: TZV | U100: IP1 | V100: TS1 | W100: TL2 | X100: TE1 | Y100: IP2 | Z100: a | AA100: b | AB100: c | AC100: d
B101: 0 | C101: =C20 -> 175.0089283 | D101: =C101/SQRT(2) -> 123.75 | E101: =IF(Vflyback>C101,TRUE,FALSE) -> FALSE | F101: =IF(E101=TRUE, (2*Cosseq/(SQRT(C101+Vflyback)))+Cstray,(2*Cosseq/(SQRT(C101+Vflyback)+SQRT(C101-Vflyback)))+Cstray) -> 3.714635784e-12 | G101: =Ifind(Z101,AA101,AB101,AC101,U101,Y101) -> 2.77233386 | H101: =G101*$C$89/C101 -> 4.911833699e-06 | I101: =(1/2)*$C$89*(G101^2)/Pin_est -> 1.134828135e-05 | J101: =G101*SQRT(H101/(3*I101)) -> 1.053032274 | K101: =$C$89*G101/Vflyback -> 6.322787542e-06 | L101: =G101*Nps*SQRT(K101/(3*I101)) -> 6.576161449 | M101: =H101/I101 -> 0.4328262181 | N101: =Vout/M101 -> 55.44950605 | O101: =SQRT($C$90*F101) -> 5.366081799e-09 | P101: =1/(2*PI()*SQRT($C$91*F101)) -> 4632025.213 | Q101: =IF(E101=TRUE,(1/(2*PI()*P101))*ACOS(-C101/Vflyback),1/(2*P101)) -> 1.079441447e-07 | R101: =IF(E101=TRUE,-(Vflyback*SQRT((F101/$C$89)*(1-((C101/Vflyback)^2)))),0) -> 0 | S101: =IF(E101=TRUE,0,(C101-Vflyback)) -> 39.05390121 | T101: =IF(E101=TRUE,($C$89/C101)*(-R101),0) -> 0 | U101: =2*Pin_est*(1/C101+1/Vflyback) -> 2.744567209 | V101: =U101*$C$91*(1/C101+1/Vflyback) -> 1.1400152e-05 | W101: =(C101+Vflyback)*F101/U101 -> 4.208743122e-10 | X101: =Q101+T101+O101+W101+V101 -> 1.15138831e-05 | Y101: =(1/(1+C101/Vflyback))*X101*C101/$C$89 -> 2.841246473 | Z101: =$C$89/(2*Pin_est) -> 1.476518986e-06 | AA101: =-(1/C101+1/Vflyback)*$C$89 -> -4.052405593e-06 | AB101: =-(Q101+T101+O101) -> -1.133102265e-07 | AC101: =-(C101+Vflyback)*F101 -> -1.155117837e-09
B102: 1 | C102: =C101+(Vbulkmax-C20)/$B$121 -> 205.1493549 | D102: =C102/SQRT(2) -> 145.0625 | E102: FALSE | F102: 3.387838452e-12 | G102: 2.596596956 | H102: 3.924575773e-06 | I102: 9.955157218e-06 | J102: =G102*SQRT(H102/(3*I102)) -> 0.941274328 | K102: 5.921989094e-06 | L102: 6.364319502 | M102: =H102/I102 -> 0.3942253936 | N102: 60.87887891 | O102: 5.124606417e-09 | P102: 4850289.791 | Q102: 1.03086624e-07 | R102: 0 | S102: 69.19432776 | T102: 0 | U102: 2.568272886 | V102: 9.982635983e-06 | W102: 4.499547333e-10 | X102: =Q102+T102+O102+W102+V102 -> 1.009129717e-05 | Y102: 2.661134301 | Z102: 1.476518986e-06 | AA102: -3.792103677e-06 | AB102: =-(Q102+T102+O102) -> -1.082112304e-07 | AC102: -1.155606542e-09
B103: 2 | C103: =C102+(Vbulkmax-C20)/$B$121 -> 235.2897814 | D103: 166.375 | E103: FALSE | F103: 3.162852289e-12 | G103: 2.465974569 | H103: 3.249704395e-06 | I103: 8.9787571e-06 | J103: 0.8565284318 | K103: 5.624082117e-06 | L103: 6.202174756 | M103: 0.3619325435 | N103: 66.31069914 | O103: 4.951520992e-09 | P103: 5019836.577 | Q103: 9.960483621e-08 | R103: 0 | S103: 99.33475431 | T103: 0 | U103: 2.437144877 | V103: 8.989294212e-06 | W103: 4.817901896e-10 | X103: 9.094332359e-06 | Y103: 2.527263 | Z103: 1.476518986e-06 | AA103: -3.598490683e-06 | AB103: -1.045563572e-07 | AC103: -1.174192493e-09
B104: 3 | C104: =C103+(Vbulkmax-C20)/$B$121 -> 265.430208 | D104: 187.6875 | E104: FALSE | F104: 2.992021559e-12 | G104: 2.36504674 | H104: 2.762788955e-06 | I104: 8.258829334e-06 | J104: 0.7897574116 | K104: 5.39389872e-06 | L104: 6.073926974 | M104: 0.334525493 | N104: 71.7434112 | O104: 4.815945115e-09 | P104: 5161152.295 | Q104: 9.687759077e-08 | R104: 0 | S104: 129.4751809 | T104: 0 | U104: 2.335796856 | V104: 8.257204491e-06 | W104: 5.141514229e-10 | X104: 8.359412178e-06 | Y104: 2.423827086 | Z104: 1.476518986e-06 | AA104: -3.448848405e-06 | AB104: -1.016935359e-07 | AC104: -1.200953277e-09
B105: 4 | C105: =C104+(Vbulkmax-C20)/$B$121 -> 295.5706345 | D105: 209 | E105: FALSE | F105: 2.855230294e-12 | G105: 2.284709454 | H105: 2.39677919e-06 | I105: 7.707277449e-06 | J105: 0.7355866986 | K105: 5.210675625e-06 | L105: 5.969874365 | M105: 0.3109761139 | N105: 77.17634548 | O105: 4.7045679e-09 | P105: 5283338.813 | Q105: 9.463712582e-08 | R105: 0 | S105: 159.6156074 | T105: 0 | U105: 2.255118496 | V105: 7.696648183e-06 | W105: 5.463593793e-10 | X105: 7.796536236e-06 | Y105: 2.341495346 | Z105: 1.476518986e-06 | AA105: -3.329725275e-06 | AB105: -9.934169372e-08 | AC105: -1.232105142e-09
B106: 5 | C106: =C105+(Vbulkmax-C20)/$B$121 -> 325.7110611 | D106: 230.3125 | E106: FALSE | F106: 2.741880518e-12 | G106: 2.219237566 | H106: 2.112660042e-06 | I106: 7.271878706e-06 | J106: 0.6906128645 | K106: 5.061355645e-06 | L106: 5.88371462 | M106: 0.2905246536 | N106: 82.60916828 | O106: 4.610238917e-09 | P106: 5391439.931 | Q106: 9.273960323e-08 | R106: 0 | S106: 189.756034 | T106: 0 | U106: 2.189371654 | V106: 7.254406426e-06 | W106: 5.781719383e-10 | X106: 7.35233444e-06 | Y106: 2.274399374 | Z106: 1.476518986e-06 | AA106: -3.232648815e-06 | AB106: -9.734984215e-08 | AC106: -1.265833253e-09
B107: 6 | C107: =C106+(Vbulkmax-C20)/$B$121 -> 355.8514876 | D107: 251.625 | E107: FALSE | F107: 2.645650557e-12 | G107: 2.164849043 | H107: 1.886327789e-06 | I107: 6.919811619e-06 | J107: 0.6525720009 | K107: 4.937313198e-06 | L107: 5.811169072 | M107: 0.2725981418 | N107: 88.04168599 | O107: 4.528615098e-09 | P107: 5488615.315 | Q107: 9.109765784e-08 | R107: 0 | S107: 219.8964605 | T107: 0 | U107: 2.134762256 | V107: 6.897027095e-06 | W107: 6.095049585e-10 | X107: 6.993262873e-06 | Y107: 2.218662803 | Z107: 1.476518986e-06 | AA107: -3.152017001e-06 | AB107: -9.562627294e-08 | AC107: -1.30114818e-09
B108: 7 | C108: =C107+(Vbulkmax-C20)/$B$121 -> 385.9919142 | D108: 272.9375 | E108: FALSE | F108: 2.562452075e-12 | G108: 2.11894536 | H108: 1.702158043e-06 | I108: 6.629466063e-06 | J108: 0.6198973724 | K108: 4.832621899e-06 | L108: 5.749228651 | M108: 0.2567564307 | N108: 93.47380293 | O108: 4.456840022e-09 | P108: 5577006.592 | Q108: 8.965382983e-08 | R108: 0 | S108: 250.0368871 | T108: 0 | U108: 2.088681277 | V108: 6.602482343e-06 | W108: 6.403389727e-10 | X108: 6.697233352e-06 | Y108: 2.171621946 | Z108: 1.476518986e-06 | AA108: -3.08397756e-06 | AB108: -9.411066985e-08 | AC108: -1.337464023e-09
B109: 8 | C109: =C108+(Vbulkmax-C20)/$B$121 -> 416.1323407 | D109: 294.25 | E109: FALSE | F109: 2.4894851e-12 | G109: 2.079681396 | H109: 1.549614488e-06 | I109: 6.386054926e-06 | J109: 0.5914685934 | K109: 4.743073629e-06 | L109: 5.695713105 | M109: 0.2426559912 | N109: 98.90545 | O109: 4.392926483e-09 | P109: 5658147.543 | Q109: 8.836814455e-08 | R109: 0 | S109: 280.1773136 | T109: 0 | U109: 2.04927558 | V109: 6.355703529e-06 | W109: 6.706825036e-10 | X109: 6.449135283e-06 | Y109: 2.131385891 | Z109: 1.476518986e-06 | AA109: -3.025794301e-06 | AB109: -9.276107103e-08 | AC109: -1.374413276e-09
B110: 9 | C110: =C109+(Vbulkmax-C20)/$B$121 -> 446.2727673 | D110: 315.5625 | E110: FALSE | F110: 2.424747761e-12 | G110: 2.045711517 | H110: 1.421354258e-06 | I110: 6.179136886e-06 | J110: 0.5664623141 | K110: 4.665599436e-06 | L110: 5.649004196 | M110: 0.2300247242 | N110: 104.3366103 | O110: 4.335432741e-09 | P110: 5733182.285 | Q110: 8.721159998e-08 | R110: 0 | S110: 310.3177401 | T110: 0 | U110: 2.015192657 | V110: 6.146049377e-06 | W110: 7.005561161e-10 | X110: 6.238296966e-06 | Y110: 2.096575166 | Z110: 1.476518986e-06 | AA110: -2.975470218e-06 | AB110: -9.154703272e-08 | AC110: -1.411755541e-09
B111: 10 | C111: =C110+(Vbulkmax-C20)/$B$121 -> 476.4131938 | D111: 336.875 | E111: FALSE | F111: 2.366759906e-12 | G111: 2.016030312 | H111: 1.312114116e-06 | I111: 6.001131604e-06 | J111: 0.5442590492 | K111: 4.597906306e-06 | L111: 5.607873791 | M111: 0.2186444495 | N111: 109.7672502 | O111: 4.283278086e-09 | P111: 5802991.467 | Q111: 8.616245652e-08 | R111: 0 | S111: 340.4581667 | T111: 0 | U111: 1.985422267 | V111: 5.965799833e-06 | W111: 7.2998504e-10 | X111: 6.056975553e-06 | Y111: 2.066159749 | Z111: 1.476518986e-06 | AA111: -2.931513672e-06 | AB111: -9.044573461e-08 | AC111: -1.449328553e-09
B112: 11 | C112: =C111+(Vbulkmax-C20)/$B$121 -> 506.5536204 | D112: 358.1875 | E112: FALSE | F112: 2.314397131e-12 | G112: 1.989872336 | H112: 1.218030382e-06 | I112: 5.846412639e-06 | J112: 0.5243833762 | K112: 4.538248513e-06 | L112: 5.571373952 | M112: 0.2083380796 | N112: 115.1973756 | O112: 4.235630927e-09 | P112: 5868270.068 | Q112: 8.520398588e-08 | R112: 0 | S112: 370.5985932 | T112: 0 | U112: 1.95919461 | V112: 5.809223104e-06 | W112: 7.589956415e-10 | X112: 5.899421717e-06 | Y112: 2.039354988 | Z112: 1.476518986e-06 | AA112: -2.892788039e-06 | AB112: -8.943961681e-08 | AC112: -1.48702017e-09
B113: 12 | C113: =C112+(Vbulkmax-C20)/$B$121 -> 536.6940469 | D113: 379.5 | E113: FALSE | F113: 2.266786016e-12 | G113: 1.966644287 | H113: 1.136206756e-06 | I113: 5.71071735e-06 | J113: 0.5064639507 | K113: 4.485272923e-06 | L113: 5.538760797 | M113: 0.1989604258 | N113: 120.6270036 | O113: 4.191837436e-09 | P113: 5929577.796 | Q113: 8.432303567e-08 | R113: 0 | S113: 400.7390198 | T113: 0 | U113: 1.935912814 | V113: 5.671977379e-06 | W113: 7.876137311e-10 | X113: 5.761279866e-06 | Y113: 2.015552627 | Z113: 1.476518986e-06 | AA113: -2.858412025e-06 | AB113: -8.851487311e-08 | AC113: -1.524751514e-09
B114: 13 | C114: =C113+(Vbulkmax-C20)/$B$121 -> 566.8344735 | D114: 400.8125 | E114: FALSE | F114: 2.223235267e-12 | G114: 1.945878863 | H114: 1.064431887e-06 | I114: 5.590757268e-06 | J114: 0.4902061921 | K114: 4.437913778e-06 | L114: 5.509441836 | M114: 0.1903913612 | N114: 126.0561395 | O114: 4.151374192e-09 | P114: 5987373.105 | Q114: 8.350907672e-08 | R114: 0 | S114: 430.8794463 | T114: 0 | U114: 1.915106955 | V114: 5.550715497e-06 | W114: 8.15863782e-10 | X114: 5.639191811e-06 | Y114: 1.994273864 | Z114: 1.476518986e-06 | AA114: -2.827691779e-06 | AB114: -8.766045091e-08 | AC114: -1.562466403e-09
B115: 14 | C115: =C114+(Vbulkmax-C20)/$B$121 -> 596.9749 | D115: 422.125 | E115: FALSE | F115: 2.18318892e-12 | G115: 1.927203178 | H115: 1.000990054e-06 | I115: 5.483957018e-06 | J115: 0.4753732459 | K115: 4.395320644e-06 | L115: 5.4829395 | M115: 0.1825306162 | N115: 131.4847914 | O115: 4.113815677e-09 | P115: 6042036.915 | Q115: 8.275354934e-08 | R115: 0 | S115: 461.0198729 | T115: 0 | U115: 1.896402013 | V115: 5.442816797e-06 | W115: 8.437686131e-10 | X115: 5.530527931e-06 | Y115: 1.975136645 | Z115: 1.476518986e-06 | AA115: -2.800073577e-06 | AB115: -8.686736502e-08 | AC115: -1.600124496e-09
B116: 15 | C116: =C115+(Vbulkmax-C20)/$B$121 -> 627.1153266 | D116: 443.4375 | E116: FALSE | F116: 2.146193622e-12 | G116: 1.910316229 | H116: 9.445309226e-07 | I116: 5.388272687e-06 | J116: 0.4617723717 | K116: 4.35680703e-06 | L116: 5.458864757 | M116: 0.1752938238 | N116: 136.9129812 | O116: 4.078811354e-09 | P116: 6093889.624 | Q116: 8.204940208e-08 | R116: 0 | S116: 491.1602994 | T116: 0 | U116: 1.879495066 | V116: 5.346200976e-06 | W116: 8.713493087e-10 | X116: 5.433200538e-06 | Y116: 1.957832392 | Z116: 1.476518986e-06 | AA116: -2.775110148e-06 | AB116: -8.612821343e-08 | AC116: -1.637696726e-09
B117: 16 | C117: =C116+(Vbulkmax-C20)/$B$121 -> 657.2557531 | D117: 464.75 | E117: FALSE | F117: 2.111875194e-12 | G117: 1.894971967 | H117: 8.939777787e-07 | I117: 5.302059718e-06 | J117: 0.4492449633 | K117: 4.321811783e-06 | L117: 5.436896893 | M117: 0.1686095265 | N117: 142.3407117 | O117: 4.046069086e-09 | P117: 6143203.602 | Q117: 8.139075837e-08 | R117: 0 | S117: 521.300726 | T117: 0 | U117: 1.864138755 | V117: 5.25919619e-06 | W117: 8.986252582e-10 | X117: 5.345531643e-06 | Y117: 1.942109146 | Z117: 1.476518986e-06 | AA117: -2.752436265e-06 | AB117: -8.543682746e-08 | AC117: -1.67516217e-09
B118: 17 | C118: =C117+(Vbulkmax-C20)/$B$121 -> 687.3961797 | D118: 486.0625 | E118: FALSE | F118: 2.079921496e-12 | G118: 1.880967975 | H118: 8.484624323e-07 | I118: 5.223984003e-06 | J118: 0.4376593022 | K118: 4.289873253e-06 | L118: 5.416770091 | M118: 0.1624167363 | N118: 147.7680228 | O118: 4.015342922e-09 | P118: 6190212.559 | Q118: 8.07726706e-08 | R118: 0 | S118: 551.4411525 | T118: 0 | U118: 1.850129109 | V118: 5.18044388e-06 | W118: 9.256142532e-10 | X118: 5.266157508e-06 | Y118: 1.927759148 | Z118: 1.476518986e-06 | AA118: -2.731750755e-06 | AB118: -8.478801352e-08 | AC118: -1.712505873e-09
B119: 18 | C119: =C118+(Vbulkmax-C20)/$B$121 -> 717.5366062 | D119: 507.375 | E119: FALSE | F119: 2.050069655e-12 | G119: 1.868135333 | H119: 8.072770439e-07 | I119: 5.152947347e-06 | J119: 0.4269049163 | K119: 4.260606192e-06 | L119: 5.398260889 | M119: 0.1566631657 | N119: 153.1949128 | O119: 3.986423903e-09 | P119: 6235118.691 | Q119: 8.019093537e-08 | R119: 0 | S119: 581.5815791 | T119: 0 | U119: 1.837296424 | V119: 5.108828934e-06 | W119: 9.523326095e-10 | X119: 5.193958626e-06 | Y119: 1.914609547 | Z119: 1.476518986e-06 | AA119: -2.712803053e-06 | AB119: -8.417735928e-08 | AC119: -1.749717298e-09
B120: 19 | C120: =C119+(Vbulkmax-C20)/$B$121 -> 747.6770328 | D120: 528.6875 | E120: FALSE | F120: 2.022096401e-12 | G120: 1.85633266 | H120: 7.698393319e-07 | I120: 5.088041523e-06 | J120: 0.4168884881 | K120: 4.233688151e-06 | L120: 5.38118106 | M120: 0.1513036654 | N120: 158.6214051 | O120: 3.959133058e-09 | P120: 6278098.215 | Q120: 7.964195252e-08 | R120: 0 | S120: 611.7220056 | T120: 0 | U120: 1.825498365 | V120: 5.04342768e-06 | W120: 9.787952939e-10 | X120: 5.128007561e-06 | Y120: 1.902515365 | Z120: 1.476518986e-06 | AA120: -2.695382994e-06 | AB120: -8.360108558e-08 | AC120: -1.786789208e-09
B121: 20 | C121: =Vbulkmax -> 777.8174593 | D121: 550 | E121: FALSE | F121: 1.99581064e-12 | G121: 1.845440388 | H121: 7.356659648e-07 | I121: 5.028507216e-06 | J121: 0.4075305652 | K121: 4.208846438e-06 | L121: 5.365370445 | M121: 0.1462990771 | N121: 164.0475147 | O121: 3.933315978e-09 | P121: 6319305.726 | Q121: 7.912261594e-08 | R121: 0 | S121: 641.8624322 | T121: 0 | U121: 1.814614655 | V121: 4.983468631e-06 | W121: 1.005016049e-09 | X121: 5.067529579e-06 | Y121: 1.891354089 | Z121: 1.476518986e-06 | AA121: -2.67931299e-06 | AB121: -8.305593192e-08 | AC121: -1.823716851e-09
B123: Summary of Maximum Load at Minimum and Maximum Line
B124: At VAC(min) | C124: IP1 | D124: =G101 -> 2.77233386 | E124: A | H124: - IP1 is the peak primary current at low line, full load
C125: ICS1 | D125: =(Igain)*(Vovp_on*(1/Rovp1+1/C94)-(-1/Npb)*C101/Rovp1) -> 4.798602587e-05 | E125: A | H125: - ICS1 is the power limit current that is sourceed at the CS pin at low line
B127: At VAC(max) | C127: IP2 | D127: =G121 -> 1.845440388 | E127: A | H127: - IP2 is the peak primary current at high line, full load
C128: ICS2 | D128: =(Igain)*(Vovp_on*(1/Rovp1+1/C94)-(-1/Npb)*C121/Rovp1) -> 0.0002142718804 | E128: A | H128: - ICS2 is the power limit current that is sourceed at the CS pin at high line
B131: RS and RPL Values to Achieve IP and ICS
B132: RCS | C132: =Vcs_wr*(D125-D128)/(D127*D125-D124*D128) -> 0.2631741163 | D132: W | E132: VRcs, peak | F132: =D124*C132 -> 0.7296065137 | G132: V | H132: PRcs | I132: =(1/2)*(H101/I101)*F132*D124 -> 0.4377415751 | J132: W | K132: - the ideal value of the Current Sense resistor (RCS), the peak voltage across it (VRcs, peak), and the power dissipated by it (PRcs). RCS is adjusted for actual turns ratio and carried over to the QR Simulator page where the User must select a standard value.
B133: RPL | C133: =Vcs_wr*(D124-D127)/(D124*D128-D127*D125) -> 1466.958036 | D133: W | E133: VRpl, min line | F133: =D125*C133 -> 0.07039348627 | G133: V | H133: VRpl, max line | I133: =D128*C133 -> 0.3143278568 | J133: V | K133: - the ideal value of the Power Limit Resistor (RPL), the peak voltage across it at minimum line (VRpl, min line), and the peak voltage across it at maximum line (VRpl, max line). RPL is adjusted for actual turns ratio and carried over to the QR Simulator page where the User must select a standard value.
B136: Snubber Components and Parameters, Primary-Side Voltage Clamping
B137: CSNUB | C137: =(C90*(D127^2))/(((Vflyback+Vds_os)^2)-(Vflyback^2)) -> 1.142609489e-09 | D137: F | H137: - CSNUB is the ideal value of the primary side snubber capacitor. Select a standard value close to this.
B138: TSNUB | C138: =C90*D127/((snub_percent/100)*Vflyback) -> 2.104423219e-07 | D138: s | H138: - TSNUB is the period of the ringing frequency
B139: RSNUB1 | C139: =(I121-C138)*((1/2)+(Vflyback/Vds_os))/C137 -> 10541.80134 | D139: W | E139: PRsnub1 | F139: =((Vflyback+Vds_os/2)^2)*(1+(1/3)*((1/(Vflyback/Vds_os+1/2))^2))/C139 -> 2.885769029 | G139: W | H139: - RSNUB1 is the ideal value of the snubber resistor that is in parallel to CSNUB, PRsnub1 is the power dissipation of RSNUB1. Select a standard value close to this.
B140: RSNUB2 | C140: =SQRT(C90/C137) -> 82.36643258 | D140: W | H140: - RSNUB2 is the ideal value of the snubber resistor that is in series with CSNUB. Select a standard value close to this.
B142: Output Capacitor
B143: COUT | C143: =(dIout/Vout)*(1/fmin_clamp)*(1/dVout) -> 0.0004375 | D143: F | H143: - COUT is the ideal value of the output capacitor. Select a standard value close to this.
B144: ESR, max | C144: =Vout_ripple/(Nps*D124) -> 0.003276620601 | D144: W | H144: - Select a capacitor bank (COUT) with a total ESR less than this.
B145: IC(out), rms @ low line | C145: =SQRT((L101^2)-((Pout/Vout)^2)) -> 5.567396106 | D145: A | H145: - Select a capacitor bank (COUT) to handle IC(out),rms at low line.
B146: IC(out), rms @ high line | C146: =SQRT((L121^2)-((Pout/Vout)^2)) -> 4.06659563 | D146: A | H146: - Select a capacitor bank (COUT) to handle IC(out),rms at high line.
B147: Input Bulk Capacitor | C147: =C19 -> 68 | D147: uF
B149: Soft Start
B150: tSS, minimum | C150: =(-0.5*Rload*C143*LN(1-(((Vout-dVout)^2)/(Rload*Pout)))) -> 0.0061477799 | D150: s | H150: - tSS, minimum is the required soft start time
B151: CSS, minimum | C151: =(C150/(Vcs_wr*Acs_fb))*Iss -> 1.84433397e-08 | D151: F | H151: - CSS, minimum is the rewquired capacitor fo SS. Select astandard value close to this.
B153: Summary of Ideal Converter Components
B154: Xfmr | C154: LPRI(terminal) | D154: =C89 -> 0.000310068987 | E154: H | H154: - LPRI(terminal) is the required primary inductance. LPRI is carried over to the QR Simulator page where the User must select a standard value.
C155: LPRI(leakage) | D155: =C90 -> 7.751724676e-06 | E155: H | H155: - LPRI(leakage) is the maximum allowable leakage inductance. LPRI(leakage) is carried over to the QR Simulator page where the User must select a standard value.
C156: NPRI/NSEC | D156: =Nps -> 5.504252111 | E156: turns ratio | H156: - NPRI/NSEC is the ideal primary to secondary turns ratio. NPRI/NSEC is carried over to the QR Simulator page where the User must enter the actual turns used.
C157: IPRI(rms) | D157: =J101 -> 1.053032274 | E157: ARMS | H157: - IPRI(rms) is the primary rms current at low line, maximum load
C158: IPRI(peak) | D158: =G101 -> 2.77233386 | E158: APEAK | H158: - IPRI(peak) is the peak primary current at low line, maximum load
C159: ISEC(rms) @ low line | D159: =L101 -> 6.576161449 | E159: ARMS, for non-PFC design | H159: - ISEC(rms) @ low line is the maximum secondary side rms current at low line for designs without a PFC front end
C160: ISEC(rms) @ high line | D160: =L121 -> 5.365370445 | E160: ARMS, for PFC design | H160: - ISEC(rms) @ high line is the maximum secondary side rms current at high line for designs with a PFC front end
B162: MOSFET | C162: VDS rating | D162: =Vdsrating -> 1155 | E162: V | H162: - VDS rating is the voltage rating on the User selected MOSFET
C163: VDS stress | D163: =Vdsmax -> 981.75 | E163: V | H163: - VDS stress is the resultant maximum allowed voltage on switch due to User selected derating
C164: ID(rms) | D164: =D157 -> 1.053032274 | E164: A | H164: - ID(rms) is the maximum primary rms current
B166: Output capacitor | C166: COUT | D166: =C143 -> 0.0004375 | E166: F | H166: - COUT is the ideal value of the output capacitor. Select a standard value close to this.
C167: ESR, max | D167: =C144 -> 0.003276620601 | E167: W | H167: - ESR, max is the maximum allowable equivalent series resitance of the output capacitor bank
C168: rms current rating @ low line | D168: =C145 -> 5.567396106 | E168: ARMS | H168: - rms current rating at low line is the required rms ripple current rating for low line operation of designs that do not use a PFC front end
C169: rms current rating @ high line | D169: =C146 -> 4.06659563 | E169: ARMS | H169: - rms current rating at high line is the required rms ripple current rating for low line operation of designs that use a PFC front end
B171: Output Diode | C171: VF | D171: =Vf -> 0.7 | E171: V | H171: - VF is the forward voltage drop of the selected diode
C172: IAVERAGE | D172: =Pout/Vout -> 3.5 | E172: A | H172: - IAVERAGE is the average output current
C173: IRMS | D173: =L101 -> 6.576161449 | E173: A | H173: - IRMS is the RMS output current
C174: IPEAK | D174: =G101*Nps -> 15.2596245 | E174: A | H174: - IPEAK is the PEAK output current
C175: PDISSIPATE | D175: =D171*D172 -> 2.45 | E175: W | H175: - PDISSIPATE is the calculated power dissipation of the output diode
C176: VBLOCK | D176: =(Vbulkmax/D156)+Vout -> 165.3121063 | E176: V | H176: - VBLOCK is the required reverse voltage rating of the diode
B178: R current sense | C178: RCS | D178: =C132 -> 0.2631741163 | E178: W | H178: - RCS is the ideal value of the Current Sense resistor
C179: maximum power | D179: =I132 -> 0.4377415751 | E179: W | H179: - maximum power is the calculated dissipated power across the current sense resistor
B181: R power limit | C181: RPL | D181: =C133 -> 1466.958036 | E181: W | H181: - RPL is the ideal value of the power limit resistor
B183: R2CD snubber | C183: CSNUB | D183: =C137 -> 1.142609489e-09 | E183: F | H183: - CSNUB is the ideal value of the primary side snubber capacitor. Select a standard value close to this.
C184: RSNUB1 | D184: =C139 -> 10541.80134 | E184: W | H184: - RSNUB1 is the ideal value of the snubber resistor that is in parallel to CSNUB, Select a standard value close to this.
C185: PRsnub1 | D185: =F139 -> 2.885769029 | E185: W | H185: - PRsnub1 is the power dissipation of RSNUB1.
C186: RSNUB2 | D186: =SQRT(C90/C137) -> 82.36643258 | E186: W | H186: - RSNUB2 is the ideal value of the snubber resistor that is in series with CSNUB. Select a standard value close to this.
B187: OVP | C187: ROVP1 | D187: =Rovp1 -> 246977.2971 | E187: W | H187: - ROVP1 is the ideal value of the top resistor on the OVP pin
C188: ROVP2 | D188: =C94 -> 52104.91501 | E188: W | H188: - ROVP2 is the ideal value of the bottom resistor on the OVP pin
B190: Soft start | C190: CSS | D190: =C151 -> 1.84433397e-08 | E190: F | H190: - CSS, minimum is the required capacitor fo SS. Select astandard value close to this.
C191: tSS | D191: =C150 -> 0.0061477799 | E191: s | H191: - tSS, minimum is the required soft start time
B193: Minimum VDD Capacitor | C193: CVDD | D193: =((7*10^-3)+((Ciss*(IF(Vbias>13,13,Vbias))*fvmin_maxload)))*(D191/4) -> 1.119818109e-05 | E193: F | H193: - CVDD is the minimum required value for the bulk capacitor on VDD
B194: Series resistor | C194: RVDD | D194: =(PI()/4)*(1/Npb)*((Vds_os*fvmin_maxload*SQRT(C90*(Coss+C137)))/(7*10^-3)+((Ciss*(IF(Vbias>13,13,Vbias))*fvmin_maxload))) -> 7.849172192 | E194: W | H194: - RVDD is the series resistor from the Bias windings into VDD
B195: Start up resistor | C195: RSU | D195: =C20/(0.000025) -> 7000357.134 | E195: W | H195: - RSU is the start up resistor from the bulk input into VDD

Sheet QR Simulator
A1: UCC28600 Analysis Spreadsheet
A2: TI Literature Number - SLVC104J - April 2017
B3: Design Simulation - type in the blue data and it responds with the red data.
A4: Note: The converter requirements and recommended component values have been carried over from the QR Designer Tool page and are shown in RED. The USER MUST TYPE IN STANDARD COMPONENT VALUES IN THE BLUE CELLS FOR THE SIMULATOR TO GENERATE THE DESIGN SPECIFIC MODE CHARTS
G6: OPERATING MODE MAPS
A7: Converter Requirements:
A8: POUT | B8: ='QR Design Tool'!C10 -> 84 | C8: W | AB8: PLOAD/PRATED | AC8: IP actual | AD8: fS actual
A9: RLOAD during SS | B9: =(B17^2)/B8 -> 6.857142857 | C9: W | AC9: A | AD9: Hz
A10: Efficiency ratio | B10: ='QR Design Tool'!C12 -> 0.8 | AB10: 1 | AC10: 3.076358557 | AD10: 72767.01418
A11: PIN | B11: ='QR Design Tool'!C13 -> 105 | C11: W | AB11: 0.95 | AC11: 2.925918579 | AD11: 76420.09818
A12: VAC(min) | B12: ='QR Design Tool'!C14 -> 165 | C12: VAC | D12: VBULK(min_pk) | E12: =B12*SQRT(2) -> 233.3452378 | F12: V | AB12: 0.9 | AC12: 2.775472641 | AD12: 80459.45146
A13: VAC(max) | B13: ='QR Design Tool'!C15 -> 550 | C13: VAC | D13: VBULK(min_valley) | E13: ='QR Design Tool'!C20 -> 175.0089283 | F13: V | AB13: 0.85 | AC13: 2.625020981 | AD13: 84949.69563
A14: VBULK(ripple), %pp | B14: ='QR Design Tool'!C16 -> 25 | C14: % | D14: VBULK(max_pk) | E14: =B13*SQRT(2) -> 777.8174593 | F14: V | AB14: 0.8 | AC14: 2.474561453 | AD14: 89970.87814
A15: VAC(max) shutdown margin % | B15: ='QR Design Tool'!C17 -> 5 | C15: % | D15: VBULK(shutdown) | E15: =E14*(1+B15/100) -> 816.7083323 | F15: V | AB15: 0.75 | AC15: 2.324093103 | AD15: 95623.06913
A16: fS(min) | B16: ='QR Design Tool'!C21 -> 80000 | C16: Hz | D16: TS(min) | E16: =1/B16 -> 1.25e-05 | F16: s | AB16: 0.7 | AC16: 2.173614025 | AD16: 102033.2321
A17: VOUT | B17: ='QR Design Tool'!C22 -> 24 | C17: V | AB17: 0.65 | AC17: 2.023122072 | AD17: 109364.8192
A18: VOUT(ripple), max pp | B18: ='QR Design Tool'!C23 -> 0.05 | C18: V | AB18: 0.6 | AC18: 1.872613788 | AD18: 117832.0074
A19: VOUT, shut-down | B19: ='QR Design Tool'!C24 -> 28 | C19: V | AB19: 0.55 | AC19: 1.72208488 | AD19: 127720.921
A20: Load step, Watts | B20: ='QR Design Tool'!C25 -> 84 | C20: W | AB20: 0.5 | AC20: 1.627487103 | AD20: 130000
A21: max dVOUT due to load step | B21: ='QR Design Tool'!C26 -> 0.2 | C21: V | AB21: 0.45 | AC21: 1.543969832 | AD21: 130000
A22: estimated fCO, Hz | B22: ='QR Design Tool'!C27 -> 3000 | C22: Hz | AB22: 0.4 | AC22: 1.502671916 | AD22: 121994.4605
A23: VBIAS at full load | B23: ='QR Design Tool'!C28 -> 18 | C23: V | AB23: 0.35 | AC23: 1.502671916 | AD23: 106745.153
A24: Snubber overshoot % of reflected VOUT | B24: ='QR Design Tool'!C29 -> 50 | C24: % | AB24: 0.3 | AC24: 1.502671916 | AD24: 91495.84539
A25: COUT | B25: =Cout -> 0.0004375 | C25: F | AB25: 0.25 | AC25: 1.502671916 | AD25: 76246.53783
A26: CBULK | B26: ='QR Design Tool'!C19 -> 68 | C26: uF | AB26: 0.2 | AC26: 1.502671916 | AD26: 60997.23026
A27: MOSFET Specifications: | AB27: 0.15 | AC27: 1.502671916 | AD27: 45747.9227
A28: VDS(max) rating | B28: ='QR Design Tool'!C33 -> 1155 | C28: V | AB28: 0.1 | AC28: 1.502671916 | AD28: 30498.61513
A29: VDS derate % | B29: ='QR Design Tool'!C34 -> 15 | C29: % | D29: Actual derating % | E29: =100*(B28-Vreflect-E14)/B28 -> 20.89459227 | F29: % | AB29: 0.05 | AC29: 1.502671916 | AD29: 15249.30757
A30: VDS(max) limit | B30: ='QR Design Tool'!C35 -> 981.75 | C30: V | AB30: 0.01 | AC30: 1.502671916 | AD30: 3049.861513
A31: COSS estimate, at VDS = 25 V | B31: ='QR Design Tool'!C36 -> 7.2e-12 | C31: F | D31: VDS test V | E31: 25 | F31: V
A32: Co', F-sqrt(V) | B32: ='QR Design Tool'!C37 -> 3.6e-11 | C32: F
A33: CDS, stray | B33: ='QR Design Tool'!C38 -> 7e-13 | C33: F
A36: Diode Data:
A37: VF | B37: ='QR Design Tool'!C46 -> 0.7 | C37: V
A40: Transformer Data
A41: Actual Leakage to magnetizing inductance % (from magnetic manufacturer's drawing spec) | B41: 2 | C41: % | D41: Leakage to magnetizing inductance ratio | E41: =B41/100 -> 0.02
A42: Actual LM (from magnetic manufacturer's drawing spec). The recommended primary inductance is shown in cell E42, carried over from the QR Design page. | B42: 0.00032 | C42: H | D42: Recommended LM carried over from QR Design page and shown for the User's convenience in cell E42 | E42: ='QR Design Tool'!C89 -> 0.000310068987 | F42: H
A43: LLEAKAGE | B43: =E41*Lmag -> 6.4e-06 | C43: H
A44: Total L, primary | B44: =Lmag+Lleakage -> 0.0003264 | C44: H
A45: Input the actual Primary to Secondary Turns Ratio, from the magnetic manufacturer's drawing spec, into cell B47. This value should very closely match the recommended turns ratio calculated on the QR Design Tool sheet and shown for the User's convenience in cell E47 of this sheet.
A47: NPRI/NSEC (from magnetic manufacturer's drawing spec) | B47: 5.5 | C47: turns ratio | E47: ='QR Design Tool'!C87 -> 5.504252111 | F47: Recommended NPRI/NSEC turns ratio
A48: VXFMR, reflect | B48: =(B17+B37)*B47 -> 135.85 | C48: V | D48: Recommended VXFMR, reflect | E48: =(B30-E14)/(1+B24/100) -> 135.9550271 | F48: V
A49: Input the actual Primary to Bias Turns Ratio, from the magnetic manufacturer's drawing spec, into cell B50. This value should very closely match the recommended turns ratio calculated on the QR Design Tool sheet and shown, for the User's convenience, in cell E50 of this sheet.
A50: NPRI/NBIAS | B50: 7.3333 | E50: ='QR Design Tool'!C88 -> 7.339002814 | F50: Recommended NPRI/NBIAS turns ratio
A51: ACTUAL Output Voltage | B51: =(Vreflect/B47)-B37 -> 24 | C51: V
A52: ACTUAL Bias Voltage | B52: =(B47*B17)/B50 -> 18.00008182 | C52: V
A53: Sense Resistors & Power Limit | D53: Recommended values, carried over from the QR Design Tool page and adjusted for the actual turns ratio are shown in cells D54 through D57. The User must insert the closest standard value for each component in cells B54 through B57, iterating until the recommended values no longer self-adjust (usually 2-3 iterations are all that are needed) | G53: In regards to the above Mode Plots: The green shaded region represents the Green Mode area of operation where the controller applies packets of 40kHz pulses to the MOSFET gate. The frequency shown is actually the average switching frequency of the 40kHz packets of pulses while in this region. Ideally, a design will transition from Green mode into Frequency Foldback mode (FFM) at approximately 10% load. From FFM, with increasing load, the converter will either operate in Discontinuous Mode (DCM) at which point the frequency will be fixed at 130kHz, or transition directly into Quasi-Resonant mode (QR) where the frequency will decrease with increasing load. Due to the limitaions of this QR Simulator spreadsheet. the Mode plots do NOT accurately show the internal 40kHz clamp of Quasi-Resonant operation. As shown below, once the switching frequency hits the internal 40kHz minimum frequency clamp, the operating frequency will begin to increase with increasing load, dependent upon line and load conditions. | N53: fs, actual (kHz) for Rated P map 1, 2, 3 | O53: fs, actual (kHz) for Input Low Line Map 1, 2, 3 | P53: fs, actual (kHz) for Input High Line Map 1, 2, 3 | Q53: fs, actual (kHz) for Power Limit Map 1, 2
A54: RCS, current sense | B54: 0.255 | C54: W | D54: =B67*(AF91-AF111)/(E111*AF91-Ip_actual*AF111) -> 0.2631688625 | E54: W | N54: =$H$91*0.001 -> 83.70838689 | O54: =$G$137*0.001 -> 83.70838689 | P54: =$G$180*0.001 -> 130 | Q54: =$D$206*0.001 -> 81.24963622
A55: RPL, power limit | B55: 1500 | C55: W | D55: =B67*(Ip_actual-E111)/(Ip_actual*AF111-E111*AF91) -> 1477.993757 | E55: W | N55: =$H$92*0.001 -> 95.42401038 | O55: =$G$138*0.001 -> 88.02570433 | P55: =$G$181*0.001 -> 130 | Q55: =$D$207*0.001 -> 88.293495
A56: ROVP1 | B56: 249000 | C56: W | D56: =(B73*(B47/B50)*((B19+B37)/B74)+(E15/B50))/B72 -> 247169.608 | E56: W | N56: =$H$93*0.001 -> 105.802678 | O56: =$G$139*0.001 -> 92.81261046 | P56: =$G$182*0.001 -> 130 | Q56: =$D$208*0.001 -> 94.64501219
A57: ROVP2 | B57: 52300 | C57: W | D57: =D56/(((B47/B50)*(B19+B37)/B74)-1) -> 52145.1999 | E57: W | N57: =$H$94*0.001 -> 115.0273155 | O57: =$G$140*0.001 -> 98.15009589 | P57: =$G$183*0.001 -> 130 | Q57: =$D$209*0.001 -> 100.4840866
N58: =$H$95*0.001 -> 123.2605859 | O58: =$G$141*0.001 -> 104.1389536 | P58: =$G$184*0.001 -> 130 | Q58: =$D$210*0.001 -> 105.941036
N59: =$H$96*0.001 -> 130.6421994 | O59: =$G$142*0.001 -> 110.906199 | P59: =$G$185*0.001 -> 130 | Q59: =$D$211*0.001 -> 111.1134038
A60: UCC28600 Parameters | N60: =$H$97*0.001 -> 137.290384 | O60: =$G$143*0.001 -> 118.6141017 | P60: =$G$186*0.001 -> 130 | Q60: =$D$212*0.001 -> 116.0762707
A61: VFB, no load | B61: 4.87 | C61: V, = VREF in chip, @ no load | N61: =$H$98*0.001 -> 143.3043388 | O61: =$G$144*0.001 -> 127.4734932 | P61: =$G$187*0.001 -> 130 | Q61: =$D$213*0.001 -> 120.8889327
A62: RFB | B62: 20000 | C62: W, internal to chip | N62: =$H$99*0.001 -> 148.7675779 | O62: =$G$145*0.001 -> 130 | P62: =$G$188*0.001 -> 130 | Q62: =$D$214*0.001 -> 125.5993825
A63: VFB at Burst/FFM boundary | B63: 1.4 | C63: V | N63: =$H$100*0.001 -> 153.7502017 | O63: =$G$146*0.001 -> 130 | P63: =$G$189*0.001 -> 130 | Q63: =$D$215*0.001 -> 130.2474054
A64: ACS(FB) | B64: 2.5 | C64: Gain, VFB/VCS | N64: =$H$101*0.001 -> 158.3115217 | O64: =$G$147*0.001 -> 130 | P64: =$G$190*0.001 -> 130 | Q64: =$D$216*0.001 -> 134.8667748
A65: VCS(OS), CS offset volts | B65: 0.4 | C65: V, typ value from data sheet | N65: =$H$102*0.001 -> 162.5016965 | O65: =$G$148*0.001 -> 130 | P65: =$G$191*0.001 -> 130 | Q65: =$D$217*0.001 -> 139.4868463
A66: VPL, power limit | B66: 1.2 | C66: V, typical CS value during power limit | N66: =$H$103*0.001 -> 166.3635635 | O66: =$G$149*0.001 -> 130 | P66: =$G$192*0.001 -> 130 | Q66: =$D$218*0.001 -> 144.1337446
A67: VPL - VCS(OS) | B67: =B66-B65 -> 0.8 | C67: V, CS working range | N67: =$H$104*0.001 -> 169.9336851 | O67: =$G$150*0.001 -> 130 | P67: =$G$193*0.001 -> 130 | Q67: =$D$219*0.001 -> 148.8312672
A68: VFB @ power limit | B68: =B66*B64 -> 3 | C68: V, VPL X ACS(FB) | N68: =$H$105*0.001 -> 173.2435258 | O68: =$G$151*0.001 -> 116.2690527 | P68: =$G$194*0.001 -> 130 | Q68: =$D$220*0.001 -> 153.601592
A69: VFB at FFM boundary | B69: 2 | C69: V | N69: =$H$106*0.001 -> 176.3202945 | O69: =$G$152*0.001 -> 96.89087728 | P69: =$G$195*0.001 -> 130 | Q69: =$D$221*0.001 -> 158.4658454
A70: fQR(max) clamp | B70: 130000 | C70: Hz | N70: =$H$107*0.001 -> 179.1875478 | O70: =$G$153*0.001 -> 77.51270182 | P70: =$G$196*0.001 -> 130 | Q70: =$D$222*0.001 -> 163.4445742
A71: fQR(min) clamp | B71: 40000 | C71: Hz | N71: =$H$108*0.001 -> 181.8658482 | O71: =$G$154*0.001 -> 58.13452637 | P71: =$G$197*0.001 -> 130 | Q71: =$D$223*0.001 -> 168.5581509
A72: IOVP(line) | B72: 0.00045 | C72: A, Line OVP typical value in data sheet | N72: =$H$109*0.001 -> 184.3731388 | O72: =$G$155*0.001 -> 38.75635091 | P72: =$G$198*0.001 -> 130 | Q72: =$D$224*0.001 -> 173.8271335
A73: VOVP(on), ON state | B73: -0.025 | C73: V, typ VOVP OUT = HIGH | N73: =$H$110*0.001 -> 186.7251783 | O73: =$G$156*0.001 -> 19.37817546 | P73: =$G$199*0.001 -> 130 | Q73: =$D$225*0.001 -> 179.2726003
A74: VOVP(load) | B74: 3.75 | C74: V, Load OVP typical value in data sheet | N74: =$H$111*0.001 -> 188.9359281 | O74: =$G$157*0.001 -> 3.875635091 | P74: =$G$200*0.001 -> 63.83327194 | Q74: =$D$226*0.001 -> 184.9164706
A75: IPL(CS)/IOVPon), current gain during OUT = ON state | B75: 0.5 | C75: 150 mA/300 mA
A76: VCS at DCM/FFM | B76: =(B69/B64)-B65 -> 0.4 | C76: V, (VFB/ACS(FB)) - VCS(OS)
A77: IP/IP(max) at DCM/FFB boundary | B77: =Vcs_DCM/B67 -> 0.5
A78: VCO gain, TS/VFB | B78: =((1/f_swmax)-(1/B71))/(B69-B63) -> -2.884615385e-05 | P78: Ipeak actual | Q78: =Ifind(Lpri_total/(2*Pin),-(1/Vbulk+1/Vreflect)*Lpri_total,-(IF(ZVS=TRUE,(1/(2*PI()*1/(2*PI()*SQRT(Lpri_total*IF(ZVS=TRUE, (2*Coss_equiv/(SQRT(Vbulk+Vreflect)))+Cds_stray,(2*Coss_equiv/(SQRT(Vbulk+Vreflect)+SQRT(Vbulk-Vreflect)))+Cds_stray)))))*ACOS(-Vbulk/Vreflect),1/(2*1/(2*PI()*SQRT(Lpri_total*IF(ZVS=TRUE, (2*Coss_equiv/(SQRT(Vbulk+Vreflect)))+Cds_stray,(2*Coss_equiv/(SQRT(Vbulk+Vreflect)+SQRT(Vbulk-Vreflect)))+Cds_stray)))))+IF(ZVS=TRUE,-(Vreflect*SQRT((IF(ZVS=TRUE, (2*Coss_equiv/(SQRT(Vbulk+Vreflect)))+Cds_stray,(2*Coss_equiv/(SQRT(Vbulk+Vreflect)+SQRT(Vbulk-Vreflect)))+Cds_stray)/Lmag)*(1-((Vbulk/Vreflect)^2)))),0)+O91),-(Vbulk+Vreflect)*IF(ZVS=TRUE, (2*Coss_equiv/(SQRT(Vbulk+Vreflect)))+Cds_stray,(2*Coss_equiv/(SQRT(Vbulk+Vreflect)+SQRT(Vbulk-Vreflect)))+Cds_stray),2*Pin*(1/Vbulk+1/Vreflect),(1/(1+Vbulk/Vreflect))*IF(ZVS=TRUE,(1/(2*PI()*1/(2*PI()*SQRT(Lpri_total*IF(ZVS=TRUE, (2*Coss_equiv/(SQRT(Vbulk+Vreflect)))+Cds_stray,(2*Coss_equiv/(SQRT(Vbulk+Vreflect)+SQRT(Vbulk-Vreflect)))+Cds_stray)))))*ACOS(-Vbulk/Vreflect),1/(2*1/(2*PI()*SQRT(Lpri_total*IF(ZVS=TRUE, (2*Coss_equiv/(SQRT(Vbulk+Vreflect)))+Cds_stray,(2*Coss_equiv/(SQRT(Vbulk+Vreflect)+SQRT(Vbulk-Vreflect)))+Cds_stray)))))+IF(ZVS=TRUE,(Lmag/Vbulk)*(-IF(ZVS=TRUE,-(Vreflect*SQRT((IF(ZVS=TRUE, (2*Coss_equiv/(SQRT(Vbulk+Vreflect)))+Cds_stray,(2*Coss_equiv/(SQRT(Vbulk+Vreflect)+SQRT(Vbulk-Vreflect)))+Cds_stray)/Lmag)*(1-((Vbulk/Vreflect)^2)))),0)),0)+SQRT(Lleakage*IF(ZVS=TRUE, (2*Coss_equiv/(SQRT(Vbulk+Vreflect)))+Cds_stray,(2*Coss_equiv/(SQRT(Vbulk+Vreflect)+SQRT(Vbulk-Vreflect)))+Cds_stray))+(Vbulk+Vreflect)*IF(ZVS=TRUE, (2*Coss_equiv/(SQRT(Vbulk+Vreflect)))+Cds_stray,(2*Coss_equiv/(SQRT(Vbulk+Vreflect)+SQRT(Vbulk-Vreflect)))+Cds_stray)/2*Pin*(1/Vbulk+1/Vreflect)+2*Pin*(1/Vbulk+1/Vreflect)*Lpri_total*(1/Vbulk+1/Vreflect)*Vbulk/Lmag) -> 2.772215366
A79: VCO offset, TS(VFB = 0) | B79: =((B69/B71)-(B63/f_swmax))/(B69-B63) -> 6.538461538e-05 | C79: V | P79: fs | Q79: =1/(1/2)*Lpri_total*(Ip_actual^2)/Pin -> 4.778493707e-05
A80: ISS(chg) | B80: 6e-06 | C80: A, SS charge current
B85: Operation Characteristics of Design Using LM and LLEAK at Full Rated Power
B86: Trial | C86: VBULK | D86: VAC, equiv. | E86: IP, actual | F86: TS, actual | G86: TON, actual | H86: fS, actual | I86: Power Limit? | J86: VFB | K86: IPRI(rms) | L86: ISEC(rms) | O86: resonant leakage | P86: resonant | Q86: TR, dMAG(valley) | R86: residue dMAG(l) | S86: VV, valley VDS
C87: V | D87: V | E87: A | F87: s | G87: s | H87: Hz | J87: V | K87: ARMS | L87: ARMS | M87: ZVS ? | N87: CDS, total | O87: time TL1=Tr / (2pi) | P87: f, reset, Hz | Q87: seconds | R87: Amps | S87: Volts | T87: TZV | U87: IP1 | V87: TS1 | W87: TL2 | X87: TE1 | Y87: IP2 | Z87: a | AA87: b | AB87: c | AC87: d | AD87: TD(mag) | AE87: D1, actual | AF87: ICS(pl) | AG87: VCS(pk) | AH87: PIN
A88: Recommended with Turns ADJ | B88: 0 | C88: =$E$13 -> 175.0089283 | D88: =C88/SQRT(2) -> 123.75 | E88: =Ifind(Z88,AA88,AB88,AC88,U88,Y88) -> 2.772362947 | F88: =(1/2)*Lpri_total*(E88^2)/Pin -> 1.194623427e-05 | G88: =E88*Lpri_total/C88 -> 5.17058915e-06 | H88: =1/F88 -> 83708.38689 | I88: =IF(AG88+$B$65>$B$66, TRUE,FALSE) -> TRUE | J88: =(AG88+$B$65)*$B$64 -> 3.001307277 | K88: =E88*SQRT(G88/(3*F88)) -> 1.053037798 | L88: =E88*$B$47*SQRT(AD88/(3*F88)) -> 6.573655355 | M88: =IF(Vreflect>C88,TRUE,FALSE) -> FALSE | N88: =IF(M88=TRUE, (2*Coss_equiv/(SQRT(C88+Vreflect)))+Cds_stray,(2*Coss_equiv/(SQRT(C88+Vreflect)+SQRT(C88-Vreflect)))+Cds_stray) -> 3.713951906e-12 | O88: =SQRT(Lleakage*N88) -> 4.875376109e-09 | P88: =1/(2*PI()*SQRT(Lpri_total*N88)) -> 4571165.221 | Q88: =IF(M88=TRUE,(1/(2*PI()*P88))*ACOS(-C88/Vreflect),1/(2*P88)) -> 1.093813012e-07 | R88: =IF(M88=TRUE,-(Vreflect*SQRT((N88/Lmag)*(1-((C88/Vreflect)^2)))),0) -> 0 | S88: =IF(M88=TRUE,0,(C88-Vreflect)) -> 39.15892834 | T88: =IF(M88=TRUE,(Lmag/C88)*(-R88),0) -> 0 | U88: =2*Pin*(1/C88+1/Vreflect) -> 2.745761379 | V88: =U88*Lpri_total*(1/C88+1/Vreflect) -> 1.171807948e-05 | W88: =(C88+Vreflect)*N88/U88 -> 4.204717564e-10 | X88: =Q88+T88+O88+W88+V88 -> 1.183275663e-05 | Y88: =(1/(1+C88/Vreflect))*X88*C88/Lmag -> 2.828084989 | Z88: =Lpri_total/(2*Pin) -> 1.554285714e-06 | AA88: =-(1/C88+1/Vreflect)*Lpri_total -> -4.267697686e-06 | AB88: =-(Q88+T88+O88) -> -1.142566773e-07 | AC88: =-(C88+Vreflect)*N88 -> -1.15451511e-09 | AD88: =E88*Lpri_total/Vreflect -> 6.661017785e-06 | AE88: =G88/F88 -> 0.432821677 | AF88: =$B$75*($B$73*(1/$D$56+1/$D$57)+(C88/($B$50*$D$56))) -> 4.798620243e-05 | AG88: =E88*$D$54+AF88*$D$55 -> 0.800522911 | AH88: =Pin -> 105
B89: 20 | C89: =$E$14 -> 777.8174593 | D89: =C89/SQRT(2) -> 550 | E89: =Ifind(Z89,AA89,AB89,AC89,U89,Y89) -> 1.845343828 | F89: =(1/2)*Lpri_total*(E89^2)/Pin -> 5.292799575e-06 | G89: =E89*Lpri_total/C89 -> 7.743722108e-07 | H89: =1/F89 -> 188935.9281 | I89: =IF(AG89+$B$65>$B$66, TRUE,FALSE) -> TRUE | J89: =(AG89+$B$65)*$B$64 -> 3.005823884 | K89: =E89*SQRT(G89/(3*F89)) -> 0.4075199034 | L89: =E89*$B$47*SQRT(AD89/(3*F89)) -> 5.363157319 | M89: =IF(Vreflect>C89,TRUE,FALSE) -> FALSE | N89: =IF(M89=TRUE, (2*Coss_equiv/(SQRT(C89+Vreflect)))+Cds_stray,(2*Coss_equiv/(SQRT(C89+Vreflect)+SQRT(C89-Vreflect)))+Cds_stray) -> 1.995802818e-12 | O89: =SQRT(Lleakage*N89) -> 3.573952718e-09 | P89: =1/(2*PI()*SQRT(Lpri_total*N89)) -> 6235714.758 | Q89: =IF(M89=TRUE,(1/(2*PI()*P89))*ACOS(-C89/Vreflect),1/(2*P89)) -> 8.018326999e-08 | R89: =IF(M89=TRUE,-(Vreflect*SQRT((N89/Lmag)*(1-((C89/Vreflect)^2)))),0) -> 0 | S89: =IF(M89=TRUE,0,(C89-Vreflect)) -> 641.9674593 | T89: =IF(M89=TRUE,(Lmag/C89)*(-R89),0) -> 0 | U89: =2*Pin*(1/C89+1/Vreflect) -> 1.815808824 | V89: =U89*Lpri_total*(1/C89+1/Vreflect) -> 5.124731305e-06 | W89: =(C89+Vreflect)*N89/U89 -> 1.004235724e-09 | X89: =Q89+T89+O89+W89+V89 -> 5.209492764e-06 | Y89: =(1/(1+C89/Vreflect))*X89*C89/Lmag -> 1.882758571 | Z89: =Lpri_total/(2*Pin) -> 1.554285714e-06 | AA89: =-(1/C89+1/Vreflect)*Lpri_total -> -2.822285715e-06 | AB89: =-(Q89+T89+O89) -> -8.375722271e-08 | AC89: =-(C89+Vreflect)*N89 -> -1.82350009e-09 | AD89: =E89*Lpri_total/Vreflect -> 4.433715315e-06 | AE89: =G89/F89 -> 0.1463067323 | AF89: =$B$75*($B$73*(1/$D$56+1/$D$57)+(C89/($B$50*$D$56))) -> 0.0002142718911 | AG89: =E89*$D$54+AF89*$D$55 -> 0.8023295535 | AH89: =Pin -> 105
A91: Actual with Real Values | B91: 0 | C91: =$E$13 -> 175.0089283 | D91: =Vbulk/SQRT(2) -> 123.75 | E91: =Ifind(Z91,AA91,AB91,AC91,U91,Y91) -> 2.772362947 | F91: =(1/2)*Lpri_total*(Ip_actual^2)/Pin -> 1.194623427e-05 | G91: =Ip_actual*Lpri_total/Vbulk -> 5.17058915e-06 | H91: =1/F91 -> 83708.38689 | I91: =IF(AG91+$B$65>$B$66, TRUE,FALSE) -> FALSE | J91: =(AG91+$B$65)*$B$64 -> 2.946002896 | K91: =Ip_actual*SQRT(G91/(3*F91)) -> 1.053037798 | L91: =Ip_actual*$B$47*SQRT(AD91/(3*F91)) -> 6.573655355 | M91: =IF(Vreflect>Vbulk,TRUE,FALSE) -> FALSE | N91: =IF(ZVS=TRUE, (2*Coss_equiv/(SQRT(Vbulk+Vreflect)))+Cds_stray,(2*Coss_equiv/(SQRT(Vbulk+Vreflect)+SQRT(Vbulk-Vreflect)))+Cds_stray) -> 3.713951906e-12 | O91: =SQRT(Lleakage*IF(ZVS=TRUE, (2*Coss_equiv/(SQRT(Vbulk+Vreflect)))+Cds_stray,(2*Coss_equiv/(SQRT(Vbulk+Vreflect)+SQRT(Vbulk-Vreflect)))+Cds_stray)) -> 4.875376109e-09 | P91: =1/(2*PI()*SQRT(Lpri_total*IF(ZVS=TRUE, (2*Coss_equiv/(SQRT(Vbulk+Vreflect)))+Cds_stray,(2*Coss_equiv/(SQRT(Vbulk+Vreflect)+SQRT(Vbulk-Vreflect)))+Cds_stray))) -> 4571165.221 | Q91: =IF(ZVS=TRUE,(1/(2*PI()*1/(2*PI()*SQRT(Lpri_total*IF(ZVS=TRUE, (2*Coss_equiv/(SQRT(Vbulk+Vreflect)))+Cds_stray,(2*Coss_equiv/(SQRT(Vbulk+Vreflect)+SQRT(Vbulk-Vreflect)))+Cds_stray)))))*ACOS(-Vbulk/Vreflect),1/(2*1/(2*PI()*SQRT(Lpri_total*IF(ZVS=TRUE, (2*Coss_equiv/(SQRT(Vbulk+Vreflect)))+Cds_stray,(2*Coss_equiv/(SQRT(Vbulk+Vreflect)+SQRT(Vbulk-Vreflect)))+Cds_stray))))) -> 1.093813012e-07 | R91: =IF(ZVS=TRUE,-(Vreflect*SQRT((IF(ZVS=TRUE, (2*Coss_equiv/(SQRT(Vbulk+Vreflect)))+Cds_stray,(2*Coss_equiv/(SQRT(Vbulk+Vreflect)+SQRT(Vbulk-Vreflect)))+Cds_stray)/Lmag)*(1-((Vbulk/Vreflect)^2)))),0) -> 0 | S91: =IF(ZVS=TRUE,0,(Vbulk-Vreflect)) -> 39.15892834 | T91: =IF(ZVS=TRUE,(Lmag/Vbulk)*(-IF(ZVS=TRUE,-(Vreflect*SQRT((IF(ZVS=TRUE, (2*Coss_equiv/(SQRT(Vbulk+Vreflect)))+Cds_stray,(2*Coss_equiv/(SQRT(Vbulk+Vreflect)+SQRT(Vbulk-Vreflect)))+Cds_stray)/Lmag)*(1-((Vbulk/Vreflect)^2)))),0)),0) -> 0 | U91: =2*Pin*(1/Vbulk+1/Vreflect) -> 2.745761379 | V91: =2*Pin*(1/Vbulk+1/Vreflect)*Lpri_total*(1/Vbulk+1/Vreflect) -> 1.171807948e-05 | W91: =(Vbulk+Vreflect)*IF(ZVS=TRUE, (2*Coss_equiv/(SQRT(Vbulk+Vreflect)))+Cds_stray,(2*Coss_equiv/(SQRT(Vbulk+Vreflect)+SQRT(Vbulk-Vreflect)))+Cds_stray)/2*Pin*(1/Vbulk+1/Vreflect) -> 7.925057497e-10 | X91: =IF(ZVS=TRUE,(1/(2*PI()*1/(2*PI()*SQRT(Lpri_total*IF(ZVS=TRUE, (2*Coss_equiv/(SQRT(Vbulk+Vreflect)))+Cds_stray,(2*Coss_equiv/(SQRT(Vbulk+Vreflect)+SQRT(Vbulk-Vreflect)))+Cds_stray)))))*ACOS(-Vbulk/Vreflect),1/(2*1/(2*PI()*SQRT(Lpri_total*IF(ZVS=TRUE, (2*Coss_equiv/(SQRT(Vbulk+Vreflect)))+Cds_stray,(2*Coss_equiv/(SQRT(Vbulk+Vreflect)+SQRT(Vbulk-Vreflect)))+Cds_stray)))))+IF(ZVS=TRUE,(Lmag/Vbulk)*(-IF(ZVS=TRUE,-(Vreflect*SQRT((IF(ZVS=TRUE, (2*Coss_equiv/(SQRT(Vbulk+Vreflect)))+Cds_stray,(2*Coss_equiv/(SQRT(Vbulk+Vreflect)+SQRT(Vbulk-Vreflect)))+Cds_stray)/Lmag)*(1-((Vbulk/Vreflect)^2)))),0)),0)+SQRT(Lleakage*IF(ZVS=TRUE, (2*Coss_equiv/(SQRT(Vbulk+Vreflect)))+Cds_stray,(2*Coss_equiv/(SQRT(Vbulk+Vreflect)+SQRT(Vbulk-Vreflect)))+Cds_stray))+(Vbulk+Vreflect)*IF(ZVS=TRUE, (2*Coss_equiv/(SQRT(Vbulk+Vreflect)))+Cds_stray,(2*Coss_equiv/(SQRT(Vbulk+Vreflect)+SQRT(Vbulk-Vreflect)))+Cds_stray)/2*Pin*(1/Vbulk+1/Vreflect)+2*Pin*(1/Vbulk+1/Vreflect)*Lpri_total*(1/Vbulk+1/Vreflect) -> 1.183312866e-05 | Y91: =(1/(1+Vbulk/Vreflect))*X91*Vbulk/Lmag -> 2.828173907 | Z91: =Lpri_total/(2*Pin) -> 1.554285714e-06 | AA91: =-(1/Vbulk+1/Vreflect)*Lpri_total -> -4.267697686e-06 | AB91: =-(Q91+T91+O91) -> -1.142566773e-07 | AC91: =-(Vbulk+Vreflect)*N91 -> -1.15451511e-09 | AD91: =Ip_actual*Lpri_total/Vreflect -> 6.661017785e-06 | AE91: =G91/F91 -> 0.432821677 | AF91: =$B$75*($B$73*(1/$B$56+1/$B$57)+Vbulk/($B$50*$B$56)) -> 4.763240459e-05 | AG91: =Ip_actual*Rcs+AF91*$B$55 -> 0.7784011585 | AH91: =Pin -> 105
B92: 1 | C92: =Vbulk+($E$14-$E$13)/$B$111 -> 205.1493549 | D92: =C92/SQRT(2) -> 145.0625 | E92: =Ifind(Z92,AA92,AB92,AC92,U92,Y92) -> 2.596604109 | F92: =(1/2)*Lpri_total*(E92^2)/Pin -> 1.047954279e-05 | G92: =E92*Lpri_total/C92 -> 4.131290501e-06 | H92: =1/F92 -> 95424.01038 | I92: FALSE | J92: 2.86490601 | K92: =E92*SQRT(G92/(3*F92)) -> 0.9412756244 | L92: =E92*$B$47*SQRT(AD92/(3*F92)) -> 6.361869527 | M92: =IF(Vreflect>C92,TRUE,FALSE) -> FALSE | N92: =IF(M92=TRUE, (2*Coss_equiv/(SQRT(C92+Vreflect)))+Cds_stray,(2*Coss_equiv/(SQRT(C92+Vreflect)+SQRT(C92-Vreflect)))+Cds_stray) -> 3.387490613e-12 | O92: =SQRT(Lleakage*N92) -> 4.656172239e-09 | P92: =1/(2*PI()*SQRT(Lpri_total*N92)) -> 4786367.12 | Q92: =IF(M92=TRUE,(1/(2*PI()*P92))*ACOS(-C92/Vreflect),1/(2*P92)) -> 1.044633618e-07 | R92: =IF(M92=TRUE,-(Vreflect*SQRT((N92/Lmag)*(1-((C92/Vreflect)^2)))),0) -> 0 | S92: =IF(M92=TRUE,0,(C92-Vreflect)) -> 69.29935489 | T92: =IF(M92=TRUE,(Lmag/C92)*(-R92),0) -> 0 | U92: =2*Pin*(1/C92+1/Vreflect) -> 2.569467055 | V92: =U92*Lpri_total*(1/C92+1/Vreflect) -> 1.026164445e-05 | W92: =(C92+Vreflect)*N92/U92 -> 4.495609746e-10 | X92: =Q92+T92+O92+W92+V92 -> 1.037121354e-05 | Y92: =(1/(1+C92/Vreflect))*X92*C92/Lmag -> 2.648840689 | Z92: 1.554285714e-06 | AA92: =-(1/C92+1/Vreflect)*Lpri_total -> -3.993685938e-06 | AB92: =-(Q92+T92+O92) -> -1.09119534e-07 | AC92: =-(C92+Vreflect)*N92 -> -1.155132114e-09 | AD92: =E92*Lpri_total/Vreflect -> 6.238730814e-06 | AE92: 0.3942243077 | AF92: =$B$75*($B$73*(1/$B$56+1/$B$57)+C92/($B$50*$B$56)) -> 5.588557095e-05 | AG92: =E92*Rcs+AF92*$B$55 -> 0.7459624042 | AH92: 105
B93: 2 | C93: =C92+($E$14-$E$13)/$B$111 -> 235.2897814 | D93: 166.375 | E93: 2.465961218 | F93: 9.451556606e-06 | G93: 3.420844444e-06 | H93: 105802.678 | I93: FALSE | J93: 2.812570541 | K93: 0.8565261131 | L93: 6.199761876 | M93: FALSE | N93: 3.162638169e-12 | O93: 4.498987028e-09 | P93: 4953592.791 | Q93: 1.009368394e-07 | R93: 0 | S93: 99.43978144 | T93: 0 | U93: 2.438339047 | V93: 9.241001527e-06 | W93: 4.813854088e-10 | X93: 9.346918739e-06 | Y93: 2.515612187 | Z93: 1.554285714e-06 | AA93: -3.789875547e-06 | AB93: -1.054358264e-07 | AC93: -1.173780839e-09 | AD93: 5.924841675e-06 | AE93: 0.3619345031 | AF93: 6.413873731e-05 | AG93: 0.7250282165 | AH93: 105
B94: 3 | C94: 265.430208 | D94: 187.6875 | E94: 2.365015984 | F94: 8.693587222e-06 | G94: 2.908264372e-06 | H94: 115027.3155 | I94: FALSE | J94: 2.779167328 | K94: 0.7897522764 | L94: 6.071540946 | M94: FALSE | N94: 2.991876166e-12 | O94: 4.375843628e-09 | P94: 5092994.997 | Q94: 9.81740607e-08 | R94: 0 | S94: 129.580208 | T94: 0 | U94: 2.336991025 | V94: 8.488773473e-06 | W94: 5.137292686e-10 | X94: 8.591837107e-06 | Y94: 2.412672125 | Z94: 1.554285714e-06 | AA94: -3.632351765e-06 | AB94: -1.025499043e-07 | AC94: -1.20058069e-09 | AD94: 5.682305609e-06 | AE94: 0.3345298433 | AF94: 7.239190367e-05 | AG94: 0.7116669313 | AH94: 105
B95: 4 | C95: 295.5706345 | D95: 209 | E95: 2.284664631 | F95: 8.112893448e-06 | G95: 2.522965574e-06 | H95: 123260.5859 | I95: FALSE | J95: 2.758892715 | K95: 0.7355794829 | L95: 5.967509476 | M95: FALSE | N95: 2.855125285e-12 | O95: 4.274669791e-09 | P95: 5213537.138 | Q95: 9.590417921e-08 | R95: 0 | S95: 159.7206345 | T95: 0 | U95: 2.256312666 | V95: 7.912785954e-06 | W95: 5.459172307e-10 | X95: 8.01351072e-06 | Y95: 2.330734782 | Z95: 1.554285714e-06 | AA95: -3.506954543e-06 | AB95: -1.00178849e-07 | AC95: -1.231759962e-09 | AD95: 5.489249433e-06 | AE95: 0.3109822149 | AF95: 8.064507003e-05 | AG95: 0.7035570859 | AH95: 105
B96: 5 | C96: 325.7110611 | D96: 230.3125 | E96: 2.219181538 | F96: 7.654494523e-06 | G96: 2.223875516e-06 | H96: 130642.1994 | I96: FALSE | J96: 2.748096617 | K96: 0.6906041466 | L96: 5.881367312 | M96: FALSE | N96: 2.741801335e-12 | O96: 4.188977028e-09 | P96: 5320189.048 | Q96: 9.398162274e-08 | R96: 0 | S96: 189.8610611 | T96: 0 | U96: 2.190565824 | V96: 7.45836221e-06 | W96: 5.777086083e-10 | X96: 7.557110518e-06 | Y96: 2.263960171 | Z96: 1.554285714e-06 | AA96: -3.404765166e-06 | AB96: -9.817059976e-08 | AC96: -1.265508733e-09 | AD96: 5.331916481e-06 | AE96: 0.2905319886 | AF96: 8.889823639e-05 | AG96: 0.6992386467 | AH96: 105
B97: 6 | C97: 355.8514876 | D97: 251.625 | E97: 2.164783716 | F97: 7.283831328e-06 | G97: 1.985618803e-06 | H97: 137290.384 | I97: FALSE | J97: 2.744367379 | K97: 0.6525621548 | L97: 5.808836389 | M97: FALSE | N97: 2.645588897e-12 | O97: 4.114823076e-09 | P97: 5416065.114 | Q97: 9.231794477e-08 | R97: 0 | S97: 220.0014876 | T97: 0 | U97: 2.135956425 | V97: 7.091133022e-06 | W97: 6.090199133e-10 | X97: 7.18817481e-06 | Y97: 2.208490615 | Z97: 1.554285714e-06 | AA97: -3.319886557e-06 | AB97: -9.643276784e-08 | AC97: -1.300839997e-09 | AD97: 5.201217556e-06 | AE97: 0.272606368 | AF97: 9.715140276e-05 | AG97: 0.6977469518 | AH97: 105
B98: 7 | C98: 385.9919142 | D98: 272.9375 | E98: 2.118872881 | F98: 6.978155781e-06 | G98: 1.791747658e-06 | H98: 143304.3388 | I98: FALSE | J98: 2.746048596 | K98: 0.6198867704 | L98: 5.746909253 | M98: FALSE | N98: 2.562402842e-12 | O98: 4.049614573e-09 | P98: 5503276.746 | Q98: 9.085496206e-08 | R98: 0 | S98: 250.1419142 | T98: 0 | U98: 2.089875446 | V98: 6.788466235e-06 | W98: 6.398320084e-10 | X98: 6.884010644e-06 | Y98: 2.16167523 | Z98: 1.554285714e-06 | AA98: -3.24826355e-06 | AB98: -9.490457664e-08 | AC98: -1.337169204e-09 | AD98: 5.090909888e-06 | AE98: 0.2567652134 | AF98: 0.0001054045691 | AG98: 0.6984194383 | AH98: 105
B99: 8 | C99: 416.1323407 | D99: 294.25 | E99: 2.079602957 | F99: 6.721894746e-06 | G99: 1.631169555e-06 | H99: 148767.5779 | I99: FALSE | J99: 2.751963393 | K99: 0.591457439 | L99: 5.693405299 | M99: FALSE | N99: 2.489444987e-12 | O99: 3.991547058e-09 | P99: 5583336.332 | Q99: 8.955219071e-08 | R99: 0 | S99: 280.2823407 | T99: 0 | U99: 2.050469749 | V99: 6.534879566e-06 | W99: 6.701535936e-10 | X99: 6.629093458e-06 | Y99: 2.121632169 | Z99: 1.554285714e-06 | AA99: -3.187015838e-06 | AB99: -9.354373776e-08 | AC99: -1.374129671e-09 | AD99: 4.996558006e-06 | AE99: 0.2426651438 | AF99: 0.0001136577355 | AG99: 0.7007853572 | AH99: 105
B100: 9 | C100: 446.2727673 | D100: 315.5625 | E100: 2.045628309 | F100: 6.504056508e-06 | G100: 1.496154659e-06 | H100: 153750.2017 | I100: FALSE | J100: 2.761253929 | K100: 0.5664507937 | L100: 5.646706966 | M100: FALSE | N100: 2.424714528e-12 | O100: 3.939311232e-09 | P100: 5657372.164 | Q100: 8.838025598e-08 | R100: 0 | S100: 310.4227673 | T100: 0 | U100: 2.016386826 | V100: 6.319439465e-06 | W100: 7.000053328e-10 | X100: 6.412459037e-06 | Y100: 2.086988562 | Z100: 1.554285714e-06 | AA100: -3.134041238e-06 | AB100: -9.231956721e-08 | AC100: -1.411481531e-09 | AD100: 4.91492882e-06 | AE100: 0.2300340807 | AF100: 0.0001219109018 | AG100: 0.7045015716 | AH100: 105
B101: 10 | C101: 476.4131938 | D101: 336.875 | E101: 2.015943289 | F101: 6.316659643e-06 | G101: 1.381162189e-06 | H101: 158311.5217 | I101: FALSE | J101: 2.773279102 | K101: 0.5442473025 | L101: 5.605586305 | M101: FALSE | N101: 2.366731985e-12 | O101: 3.891925578e-09 | P101: 5726252.792 | Q101: 8.731713708e-08 | R101: 0 | S101: 340.5631938 | T101: 0 | U101: 1.986616436 | V101: 6.134213732e-06 | W101: 7.294125116e-10 | X101: 6.226152207e-06 | Y101: 2.05671931 | Z101: 1.554285714e-06 | AA101: -3.087769546e-06 | AB101: -9.120906266e-08 | AC101: -1.449062884e-09 | AD101: 4.843606106e-06 | AE101: 0.2186538878 | AF101: 0.0001301640682 | AG101: 0.7093116409 | AH101: 105
B102: 11 | C102: 506.5536204 | D102: 358.1875 | E102: 1.989782572 | F102: 6.153781907e-06 | G102: 1.282124943e-06 | H102: 162501.6965 | I102: FALSE | J102: 2.787551019 | K102: 0.5243715484 | L102: 5.569095937 | M102: FALSE | N102: 2.314373391e-12 | O102: 3.848634784e-09 | P102: 5790663.692 | Q102: 8.634588824e-08 | R102: 0 | S102: 370.7036204 | T102: 0 | U102: 1.96038878 | V102: 5.973312992e-06 | W102: 7.584015275e-10 | X102: 6.064265917e-06 | Y102: 2.030043504 | Z102: 1.554285714e-06 | AA102: -3.047004275e-06 | AB102: -9.019452302e-08 | AC102: -1.486761845e-09 | AD102: 4.78075106e-06 | AE102: 0.2083474783 | AF102: 0.0001384172346 | AG102: 0.7150204076 | AH102: 105
B103: 12 | C103: 536.6940469 | D103: 379.5 | E103: 1.966552138 | F103: 6.010931595e-06 | G103: 1.195993549e-06 | H103: 166363.5635 | I103: FALSE | J103: 2.803690992 | K103: 0.5064520852 | L103: 5.536491286 | M103: FALSE | N103: 2.266765619e-12 | O103: 3.808844965e-09 | P103: 5851156.956 | Q103: 8.545318537e-08 | R103: 0 | S103: 400.8440469 | T103: 0 | U103: 1.937106983 | V103: 5.832276014e-06 | W103: 7.869982073e-10 | X103: 5.922325042e-06 | Y103: 2.006355789 | Z103: 1.554285714e-06 | AA103: -3.010817711e-06 | AB103: -8.926203034e-08 | AC103: -1.524499723e-09 | AD103: 4.724936459e-06 | AE103: 0.1989697487 | AF103: 0.0001466704009 | AG103: 0.7214763967 | AH103: 105
B104: 13 | C104: 566.8344735 | D104: 400.8125 | E104: 1.945784926 | F104: 5.884648472e-06 | G104: 1.120440322e-06 | H104: 169933.6851 | I104: FALSE | J104: 2.821401268 | K104: 0.4901943597 | L104: 5.507180431 | M104: FALSE | N104: 2.223217584e-12 | O104: 3.772080664e-09 | P104: 5908184.817 | Q104: 8.462836142e-08 | R104: 0 | S104: 430.9844735 | T104: 0 | U104: 1.916301124 | V104: 5.70766354e-06 | W104: 8.152270318e-10 | X104: 5.796879209e-06 | Y104: 1.985179643 | Z104: 1.554285714e-06 | AA104: -2.978479461e-06 | AB104: -8.840044208e-08 | AC104: -1.562220477e-09 | AD104: 4.675040118e-06 | AE104: 0.1904005528 | AF104: 0.0001549235673 | AG104: 0.7285605072 | AH104: 105
B105: 14 | C105: 596.9749 | D105: 422.125 | E105: 1.927108049 | F105: 5.772221475e-06 | G105: 1.053659153e-06 | H105: 173243.5258 | I105: FALSE | J105: 2.840444133 | K105: 0.4753615133 | L105: 5.480685996 | M105: FALSE | N105: 2.183173466e-12 | O105: 3.737955348e-09 | P105: 5962123.041 | Q105: 8.386274428e-08 | R105: 0 | S105: 461.1249 | T105: 0 | U105: 1.897596182 | V105: 5.596782775e-06 | W105: 8.431108221e-10 | X105: 5.685226586e-06 | Y105: 1.96613483 | Z105: 1.554285714e-06 | AA105: -2.949406638e-06 | AB105: -8.760069963e-08 | AC105: -1.599883877e-09 | AD105: 4.630166119e-06 | AE105: 0.1825396266 | AF105: 0.0001631767336 | AG105: 0.7361776531 | AH105: 105
B106: 15 | C106: 627.1153266 | D106: 443.4375 | E106: 1.910220146 | F106: 5.671496879e-06 | G106: 9.942283808e-07 | H106: 176320.2945 | I106: FALSE | J106: 2.860627468 | K106: 0.4617607588 | L106: 5.456618595 | M106: FALSE | N106: 2.146180019e-12 | O106: 3.70615058e-09 | P106: 6013287.703 | Q106: 8.314918971e-08 | R106: 0 | S106: 491.2653266 | T106: 0 | U106: 1.880689235 | V106: 5.497496134e-06 | W106: 8.706706609e-10 | X106: 5.585222145e-06 | Y106: 1.948914241 | Z106: 1.554285714e-06 | AA106: -2.923128411e-06 | AB106: -8.685534029e-08 | AC106: -1.637460939e-09 | AD106: 4.589590399e-06 | AE106: 0.1753026409 | AF106: 0.0001714299 | AG106: 0.7442509873 | AH106: 105
B107: 16 | C107: 657.2557531 | D107: 464.75 | E107: 1.894875407 | F107: 5.580744937e-06 | G107: 9.410147115e-07 | H107: 179187.5478 | I107: FALSE | J107: 2.881794571 | K107: 0.4492335173 | L107: 5.43465798 | M107: FALSE | N107: 2.111863143e-12 | O107: 3.676400973e-09 | P107: 6061947.505 | Q107: 8.248174363e-08 | R107: 0 | S107: 521.4057531 | T107: 0 | U107: 1.865332925 | V107: 5.408085726e-06 | W107: 8.979259342e-10 | X107: 5.495141797e-06 | Y107: 1.933267116 | Z107: 1.554285714e-06 | AA107: -2.899260317e-06 | AB107: -8.61581446e-08 | AC107: -1.674930809e-09 | AD107: 4.552722362e-06 | AE107: 0.1686181186 | AF107: 0.0001796830664 | AG107: 0.7527178284 | AH107: 105
B108: 17 | C108: 687.3961797 | D108: 486.0625 | E108: 1.880870938 | F108: 5.498558471e-06 | G108: 8.931039951e-07 | H108: 181865.8482 | I108: FALSE | J108: 2.903816096 | K108: 0.437648013 | L108: 5.414537753 | M108: FALSE | N108: 2.079910759e-12 | O108: 3.64848309e-09 | P108: 6108333.014 | Q108: 8.185539309e-08 | R108: 0 | S108: 551.5461797 | T108: 0 | U108: 1.851323278 | V108: 5.327155562e-06 | W108: 9.248944291e-10 | X108: 5.413584332e-06 | Y108: 1.918986684 | Z108: 1.554285714e-06 | AA108: -2.877485324e-06 | AB108: -8.550387618e-08 | AC108: -1.712278586e-09 | AD108: 4.519074525e-06 | AE108: 0.1624251156 | AF108: 0.0001879362327 | AG108: 0.7615264384 | AH108: 105
B109: 18 | C109: 717.5366062 | D109: 507.375 | E109: 1.868038177 | F109: 5.423783566e-06 | G109: 8.497512961e-07 | H109: 184373.1388 | I109: FALSE | J109: 2.926584585 | K109: 0.4268938152 | L109: 5.39603505 | M109: FALSE | N109: 2.050060038e-12 | O109: 3.622207096e-09 | P109: 6152643.711 | Q109: 8.126587911e-08 | R109: 0 | S109: 581.6866062 | T109: 0 | U109: 1.838490594 | V109: 5.253559796e-06 | W109: 9.515924557e-10 | X109: 5.339399475e-06 | Y109: 1.905900915 | Z109: 1.554285714e-06 | AA109: -2.857539666e-06 | AB109: -8.48880862e-08 | AC109: -1.749493779e-09 | AD109: 4.488241893e-06 | AE109: 0.1566713136 | AF109: 0.0001961893991 | AG109: 0.7706338339 | AH109: 105
B110: 19 | C110: 747.6770328 | D110: 528.6875 | E110: 1.856235743 | F110: 5.355464159e-06 | G110: 8.103436642e-07 | H110: 186725.1783 | I110: FALSE | J110: 2.950009906 | K110: 0.4168776053 | L110: 5.37896172 | M110: FALSE | N110: 2.022087747e-12 | O110: 3.597410399e-09 | P110: 6195053.451 | Q110: 8.070955383e-08 | R110: 0 | S110: 611.8270328 | T110: 0 | U110: 1.826692534 | V110: 5.186349297e-06 | W110: 9.780349752e-10 | X110: 5.271634296e-06 | Y110: 1.893865521 | Z110: 1.554285714e-06 | AA110: -2.83920211e-06 | AB110: -8.430696423e-08 | AC110: -1.786569187e-09 | AD110: 4.459884773e-06 | AE110: 0.1513115652 | AF110: 0.0002044425654 | AG110: 0.7800039625 | AH110: 105
B111: 20 | C111: =$E$14 -> 777.8174593 | D111: =C111/SQRT(2) -> 550 | E111: 1.845343828 | F111: 5.292799575e-06 | G111: 7.743722108e-07 | H111: 188935.9281 | I111: FALSE | J111: 2.974015685 | K111: 0.4075199034 | L111: 5.363157319 | M111: FALSE | N111: 1.995802818e-12 | O111: 3.573952718e-09 | P111: 6235714.758 | Q111: 8.018326999e-08 | R111: 0 | S111: 641.9674593 | T111: 0 | U111: 1.815808824 | V111: 5.124731305e-06 | W111: 1.004235724e-09 | X111: 5.209492764e-06 | Y111: 1.882758571 | Z111: 1.554285714e-06 | AA111: -2.822285715e-06 | AB111: -8.375722271e-08 | AC111: -1.82350009e-09 | AD111: 4.433715315e-06 | AE111: 0.1463067323 | AF111: 0.0002126957318 | AG111: 0.7896062739 | AH111: 105
B113: Min line | C113: =Vbulk -> 175.0089283 | D113: =C113/SQRT(2) -> 123.75 | E113: =Ifind(Z113,AA113,AB113,AC113,U113,Y113) -> 2.772362947 | F113: =(1/2)*Lpri_total*(E113^2)/Pin -> 1.194623427e-05 | G113: =E113*Lpri_total/C113 -> 5.17058915e-06 | H113: =1/F113 -> 83708.38689 | I113: =IF(AG113+$B$65>$B$66, TRUE,FALSE) -> FALSE | J113: =(AG113+$B$65)*$B$64 -> 2.946002896 | K113: =E113*SQRT(G113/(3*F113)) -> 1.053037798 | L113: =E113*$B$47*SQRT(AD113/(3*F113)) -> 6.573655355 | M113: =IF(Vreflect>C113,TRUE,FALSE) -> FALSE | N113: =IF(M113=TRUE, (2*Coss_equiv/(SQRT(C113+Vreflect)))+Cds_stray,(2*Coss_equiv/(SQRT(C113+Vreflect)+SQRT(C113-Vreflect)))+Cds_stray) -> 3.713951906e-12 | O113: =SQRT(Lleakage*N113) -> 4.875376109e-09 | P113: =1/(2*PI()*SQRT(Lpri_total*N113)) -> 4571165.221 | Q113: =IF(M113=TRUE,(1/(2*PI()*P113))*ACOS(-C113/Vreflect),1/(2*P113)) -> 1.093813012e-07 | R113: =IF(M113=TRUE,-(Vreflect*SQRT((N113/Lmag)*(1-((C113/Vreflect)^2)))),0) -> 0 | S113: =IF(M113=TRUE,0,(C113-Vreflect)) -> 39.15892834 | T113: =IF(M113=TRUE,(Lmag/C113)*(-R113),0) -> 0 | U113: =2*Pin*(1/C113+1/Vreflect) -> 2.745761379 | V113: =U113*Lpri_total*(1/C113+1/Vreflect) -> 1.171807948e-05 | W113: =(C113+Vreflect)*N113/U113 -> 4.204717564e-10 | X113: =Q113+T113+O113+W113+V113 -> 1.183275663e-05 | Y113: =(1/(1+C113/Vreflect))*X113*C113/Lmag -> 2.828084989 | Z113: =Lpri_total/(2*Pin) -> 1.554285714e-06 | AA113: =-(1/C113+1/Vreflect)*Lpri_total -> -4.267697686e-06 | AB113: =-(Q113+T113+O113) -> -1.142566773e-07 | AC113: =-(C113+Vreflect)*N113 -> -1.15451511e-09 | AD113: =E113*Lpri_total/Vreflect -> 6.661017785e-06 | AE113: =G113/F113 -> 0.432821677 | AF113: =$B$75*($B$73*(1/$B$56+1/$B$57)+C113/($B$50*$B$56)) -> 4.763240459e-05 | AG113: =E113*Rcs+AF113*$B$55 -> 0.7784011585
B114: Max line | C114: =C111 -> 777.8174593 | D114: =C114/SQRT(2) -> 550 | E114: =Ifind(Z114,AA114,AB114,AC114,U114,Y114) -> 1.845343828 | F114: =(1/2)*Lpri_total*(E114^2)/Pin -> 5.292799575e-06 | G114: =E114*Lpri_total/C114 -> 7.743722108e-07 | H114: =1/F114 -> 188935.9281 | I114: =IF(AG114+$B$65>$B$66, TRUE,FALSE) -> FALSE | J114: =(AG114+$B$65)*$B$64 -> 2.974015685 | K114: =E114*SQRT(G114/(3*F114)) -> 0.4075199034 | L114: =E114*$B$47*SQRT(AD114/(3*F114)) -> 5.363157319 | M114: =IF(Vreflect>C114,TRUE,FALSE) -> FALSE | N114: =IF(M114=TRUE, (2*Coss_equiv/(SQRT(C114+Vreflect)))+Cds_stray,(2*Coss_equiv/(SQRT(C114+Vreflect)+SQRT(C114-Vreflect)))+Cds_stray) -> 1.995802818e-12 | O114: =SQRT(Lleakage*N114) -> 3.573952718e-09 | P114: =1/(2*PI()*SQRT(Lpri_total*N114)) -> 6235714.758 | Q114: =IF(M114=TRUE,(1/(2*PI()*P114))*ACOS(-C114/Vreflect),1/(2*P114)) -> 8.018326999e-08 | R114: =IF(M114=TRUE,-(Vreflect*SQRT((N114/Lmag)*(1-((C114/Vreflect)^2)))),0) -> 0 | S114: =IF(M114=TRUE,0,(C114-Vreflect)) -> 641.9674593 | T114: =IF(M114=TRUE,(Lmag/C114)*(-R114),0) -> 0 | U114: =2*Pin*(1/C114+1/Vreflect) -> 1.815808824 | V114: =U114*Lpri_total*(1/C114+1/Vreflect) -> 5.124731305e-06 | W114: =(C114+Vreflect)*N114/U114 -> 1.004235724e-09 | X114: =Q114+T114+O114+W114+V114 -> 5.209492764e-06 | Y114: =(1/(1+C114/Vreflect))*X114*C114/Lmag -> 1.882758571 | Z114: =Lpri_total/(2*Pin) -> 1.554285714e-06 | AA114: =-(1/C114+1/Vreflect)*Lpri_total -> -2.822285715e-06 | AB114: =-(Q114+T114+O114) -> -8.375722271e-08 | AC114: =-(C114+Vreflect)*N114 -> -1.82350009e-09 | AD114: =E114*Lpri_total/Vreflect -> 4.433715315e-06 | AE114: =G114/F114 -> 0.1463067323 | AF114: =$B$75*($B$73*(1/$B$56+1/$B$57)+C114/($B$50*$B$56)) -> 0.0002126957318 | AG114: =E114*Rcs+AF114*$B$55 -> 0.7896062739
B118: Operation Characteristics of Design using LM and LLEAK at Low Line
B119: VBULK(min) | C119: =C113 -> 175.0089283 | D119: V | E119: Vac, equiv | F119: =C119/SQRT(2) -> 123.75 | G119: V
B120: Ip,mx | C120: =E113 -> 2.772362947 | D120: A
B121: TON at IP(max) | C121: =G113 -> 5.17058915e-06 | D121: s
B122: ZVS? | C122: =IF(Vreflect>C119,TRUE,FALSE) -> FALSE
B123: CDS, total | C123: =IF(C122=TRUE, (2*Coss_equiv/(SQRT(C119+Vreflect)))+Cds_stray,(2*Coss_equiv/(SQRT(C119+Vreflect)+SQRT(C119-Vreflect)))+Cds_stray) -> 3.713951906e-12 | D123: F
B124: Resonant leakage time TL1=Tr/2pi | C124: =SQRT(Lleakage*C123) -> 4.875376109e-09 | D124: s
B125: Resonant f, reset, Hz | C125: =1/(2*PI()*SQRT(Lpri_total*C123)) -> 4571165.221 | D125: Hz
B126: TR, dMAG-valley, seconds | C126: =IF(C122=TRUE,(1/(2*PI()*C125))*ACOS(-C119/Vreflect),1/(2*C125)) -> 1.093813012e-07 | D126: s
B127: Residue dMAG(l), Amps | C127: =IF(C122=TRUE,-(Vreflect*SQRT((C123/Lmag)*(1-((C119/Vreflect)^2)))),0) -> 0 | D127: A
B128: VV, valley VDS, Volts | C128: =IF(C122=TRUE,0,(C119-Vreflect)) -> 39.15892834 | D128: V
B129: TZV | C129: =IF(C122=TRUE,(Lmag/C119)*(-C127),0) -> 0 | D129: s
B130: Power limit offset, ICS RPL | C130: =AF113*$B$55 -> 0.07144860688 | D130: V | AA130: =1/((1/2)*Lpri_total*((IF((ModeCheck((Ipeak*Rcs+PL_offset),(1/((1/2)*Lpri_total*(Ipeak^2)/Pin)),(2*Pin/((Ip_DCM_FFB_boundary^2)*Lpri_total)),Vcs_DCM,f_swmax))="QR",Ipeak,IF((ModeCheck((Ipeak*Rcs+PL_offset),(1/((1/2)*Lpri_total*(Ipeak^2)/Pin)),(2*Pin/((Ip_DCM_FFB_boundary^2)*Lpri_total)),Vcs_DCM,f_swmax))="DCM",SQRT(2*Pin/(Lpri_total*f_swmax)),Ip_DCM_FFB_boundary)))^2)/Pin) -> 83708.38689
B131: IP, at DCM/FFB boundary | C131: =(Vcs_DCM-PL_offset)/Rcs -> 1.288436836 | D131: A
B132: P(burst boundary) | C132: =(1/2)*Lpri_total*(Ip_DCM_FFB_boundary^2)*B71 -> 10.83693356 | D132: W
B135: PLOAD/PRATED | C135: Pload | D135: PLINE | E135: Mode | F135: IP actual | G135: fS actual | H135: TON | I135: VCS | J135: VFB
C136: W | D136: W | F136: A | G136: Hz | H136: s | I136: V | J136: V | K136: Ip1 | L136: TS1 | M136: TL2 | N136: TE1 | O136: Ip2 | P136: a | Q136: b | R136: c | S136: d | T136: Ip, actual qr | U136: Ts, actual qr | V136: Ton, actual qr | W136: fs, actual qr | X136: Vcs,mx if QR | Y136: fs, FFB | Z136: Ip/Ipmx | AA136: Ts actual | AB136: Tdmag
B137: 1 | C137: =$B$8*B137 -> 84 | D137: =C137/eff -> 105 | E137: =ModeCheck(X137,W137,Y137,Vcs_DCM,f_swmax) -> QR | F137: =IF(E137="QR",Ipeak,IF(E137="DCM",SQRT(2*D137/(Lpri_total*f_swmax)),Ip_DCM_FFB_boundary)) -> 2.772362947 | G137: =1/AA137 -> 83708.38689 | H137: =F137*Lpri_total/$C$119 -> 5.17058915e-06 | I137: =F137*Rcs+PL_offset -> 0.7784011585 | J137: =IF(E137="FFB",(((1/G137)-$B$79)/$B$78),((I137+$B$65)*$B$64)) -> 2.946002896 | K137: =2*D137*(1/$C$119+1/Vreflect) -> 2.745761379 | L137: =K137*Lpri_total*(1/$C$119+1/Vreflect) -> 1.171807948e-05 | M137: =($C$119+Vreflect)*$C$123/K137 -> 4.204717564e-10 | N137: =$C$126+$C$129+$C$124+M137+L137 -> 1.183275663e-05 | O137: =(1/(1+$C$119/Vreflect))*N137*$C$119/Lmag -> 2.828084989 | P137: =Lpri_total/(2*D137) -> 1.554285714e-06 | Q137: =-(1/$C$119+1/Vreflect)*Lpri_total -> -4.267697686e-06 | R137: =-($C$126+$C$129+$C$124) -> -1.142566773e-07 | S137: =-($C$119+Vreflect)*$C$123 -> -1.15451511e-09 | T137: =Ifind(P137,Q137,R137,S137,K137,O137) -> 2.772362947 | U137: =(1/2)*Lpri_total*(Ipeak^2)/D137 -> 1.194623427e-05 | V137: =Ipeak*Lpri_total/$C$119 -> 5.17058915e-06 | W137: =1/U137 -> 83708.38689 | X137: =Ipeak*Rcs+PL_offset -> 0.7784011585 | Y137: =2*D137/((Ip_DCM_FFB_boundary^2)*Lpri_total) -> 387563.5091 | Z137: =F137/$C$120 -> 1 | AA137: =(1/2)*Lpri_total*(F137^2)/D137 -> 1.194623427e-05 | AB137: =F137*Lpri_total/Vreflect -> 6.661017785e-06
B138: 0.95 | C138: 79.8 | D138: 99.75 | E138: QR | F138: =IF(E138="QR",T138,IF(E138="DCM",SQRT(2*D138/(Lpri_total*f_swmax)),Ip_DCM_FFB_boundary)) -> 2.635066748 | G138: =1/AA138 -> 88025.70433 | H138: 4.914525188e-06 | I138: 0.7433906275 | J138: 2.858476569 | K138: 2.60847331 | L138: 1.113217551e-05 | M138: 4.426018488e-10 | N138: =$C$126+$C$129+$C$124+M138+L138 -> 1.124687479e-05 | O138: 2.688056448 | P138: 1.636090226e-06 | Q138: -4.267697686e-06 | R138: -1.142566773e-07 | S138: -1.15451511e-09 | T138: =Ifind(P138,Q138,R138,S138,K138,O138) -> 2.635066748 | U138: =(1/2)*Lpri_total*(T138^2)/D138 -> 1.136031808e-05 | V138: =T138*Lpri_total/$C$119 -> 4.914525188e-06 | W138: =1/U138 -> 88025.70433 | X138: =T138*Rcs+PL_offset -> 0.7433906275 | Y138: 368185.3337 | Z138: 0.9504768306 | AA138: 1.136031808e-05 | AB138: 6.331143073e-06
B139: 0.9 | C139: 75.6 | D139: 94.5 | E139: QR | F139: 2.497769356 | G139: 92812.61046 | H139: 4.658459002e-06 | I139: 0.7083797926 | J139: 2.770949482 | K139: 2.471185241 | L139: 1.054627153e-05 | M139: 4.671908405e-10 | N139: 1.06609954e-05 | O139: 2.548028495 | P139: 1.726984127e-06 | Q139: -4.267697686e-06 | R139: -1.142566773e-07 | S139: -1.15451511e-09 | T139: 2.497769356 | U139: 1.077439795e-05 | V139: 4.658459002e-06 | W139: =1/U139 -> 92812.61046 | X139: 0.7083797926 | Y139: 348807.1582 | Z139: 0.9009532313 | AA139: 1.077439795e-05 | AB139: 6.001265497e-06
B140: 0.85 | C140: 71.4 | D140: 89.25 | E140: QR | F140: 2.36047101 | G140: 98150.09589 | H140: 4.402391038e-06 | I140: 0.6733687145 | J140: 2.683421786 | K140: 2.333897172 | L140: 9.960367559e-06 | M140: 4.946726546e-10 | N140: 1.007511891e-05 | O140: 2.408001233 | P140: 1.828571429e-06 | Q140: -4.267697686e-06 | R140: -1.142566773e-07 | S140: -1.15451511e-09 | T140: 2.36047101 | U140: 1.018847706e-05 | V140: 4.402391038e-06 | W140: =1/U140 -> 98150.09589 | X140: 0.6733687145 | Y140: 329428.9828 | Z140: 0.8514292879 | AA140: 1.018847706e-05 | AB140: 5.671385629e-06
B141: 0.8 | C141: 67.2 | D141: 84 | E141: QR | F141: 2.223171473 | G141: 104138.9536 | H141: 4.146320851e-06 | I141: 0.6383573324 | J141: 2.595893331 | K141: 2.196609103 | L141: 9.374463585e-06 | M141: 5.255896955e-10 | N141: 9.489245852e-06 | O141: 2.267974792 | P141: 1.942857143e-06 | Q141: -4.267697686e-06 | R141: -1.142566773e-07 | S141: -1.15451511e-09 | T141: 2.223171473 | U141: 9.602554713e-06 | V141: 4.146320851e-06 | W141: =1/U141 -> 104138.9536 | X141: 0.6383573324 | Y141: 310050.8073 | Z141: 0.8019049146 | AA141: 9.602554713e-06 | AB141: 5.341502898e-06
B142: 0.75 | C142: 63 | D142: 78.75 | E142: QR | F142: 2.085870266 | G142: 110906.199 | H142: 3.890247551e-06 | I142: 0.6033455247 | J142: 2.508363812 | K142: 2.059321034 | L142: 8.788559611e-06 | M142: 5.606290085e-10 | N142: 8.903376917e-06 | O142: 2.127949336 | P142: 2.072380952e-06 | Q142: -4.267697686e-06 | R142: -1.142566773e-07 | S142: -1.15451511e-09 | T142: 2.085870266 | U142: 9.016628545e-06 | V142: 3.890247551e-06 | W142: 110906.199 | X142: 0.6033455247 | Y142: 290672.6318 | Z142: 0.7523799392 | AA142: 9.016628545e-06 | AB142: 5.011616156e-06
B143: 0.7 | C143: 58.8 | D143: 73.5 | E143: QR | F143: 1.94856739 | G143: 118614.1017 | H143: 3.634171138e-06 | I143: 0.5683332914 | J143: 2.420833229 | K143: 1.922032965 | L143: 8.202655637e-06 | M143: 6.006739377e-10 | N143: 8.317512988e-06 | O143: 1.987925076 | P143: 2.220408163e-06 | Q143: -4.267697686e-06 | R143: -1.142566773e-07 | S143: -1.15451511e-09 | T143: 1.94856739 | U143: 8.430700784e-06 | V143: 3.634171138e-06 | W143: 118614.1017 | X143: 0.5683332914 | Y143: 271294.4564 | Z143: 0.7028543619 | AA143: 8.430700784e-06 | AB143: 4.681725405e-06
B144: 0.65 | C144: 54.6 | D144: 68.25 | E144: QR | F144: 1.811262131 | G144: 127473.4932 | H144: 3.378090278e-06 | I144: 0.5333204502 | J144: 2.333301126 | K144: 1.784744896 | L144: 7.616751663e-06 | M144: 6.468796252e-10 | N144: 7.73165522e-06 | O144: 1.847902289 | P144: 2.391208791e-06 | Q144: -4.267697686e-06 | R144: -1.142566773e-07 | S144: -1.15451511e-09 | T144: 1.811262131 | U144: 7.844768156e-06 | V144: 3.378090278e-06 | W144: 127473.4932 | X144: 0.5333204502 | Y144: 251916.2809 | Z144: 0.6533279246 | AA144: 7.844768156e-06 | AB144: 4.351828925e-06
B145: 0.6 | C145: 50.4 | D145: 63 | E145: DCM | F145: 1.72321125 | G145: 130000 | H145: 3.213871186e-06 | I145: 0.5108674757 | J145: 2.277168689 | K145: 1.647456827 | L145: 7.030847689e-06 | M145: 7.007862607e-10 | N145: 7.145805152e-06 | O145: 1.707881343 | P145: 2.59047619e-06 | Q145: -4.267697686e-06 | R145: -1.142566773e-07 | S145: -1.15451511e-09 | T145: 1.67395401 | U145: 7.258830395e-06 | V145: 3.122004083e-06 | W145: 137763.2408 | X145: 0.4983068794 | Y145: 232538.1055 | Z145: 0.6215676962 | AA145: 7.692307692e-06 | AB145: 4.140273479e-06
B146: 0.55 | C146: 46.2 | D146: 57.75 | E146: DCM | F146: 1.649849164 | G146: 130000 | H146: 3.077047395e-06 | I146: 0.4921601436 | J146: 2.230400359 | K146: 1.510168758 | L146: 6.444943715e-06 | M146: 7.644941026e-10 | N146: 6.559964886e-06 | O146: 1.567862739 | P146: 2.825974026e-06 | Q146: -4.267697686e-06 | R146: -1.142566773e-07 | S146: -1.15451511e-09 | T146: 1.536642432 | U146: 6.672887588e-06 | V146: 2.86591144e-06 | W146: 149860.1598 | X146: 0.4632924271 | Y146: 213159.93 | Z146: 0.5951057617 | AA146: 7.692307692e-06 | AB146: 3.964010062e-06
B147: 0.5 | C147: 42 | D147: 52.5 | E147: DCM | F147: 1.573069455 | G147: 130000 | H147: 2.933849576e-06 | I147: 0.472581318 | J147: 2.181453295 | K147: 1.372880689 | L147: 5.859039741e-06 | M147: 8.409435128e-10 | N147: 5.974137361e-06 | O147: 1.427847181 | P147: 3.108571429e-06 | Q147: -4.267697686e-06 | R147: -1.142566773e-07 | S147: -1.15451511e-09 | T147: 1.399326205 | U147: 6.086936702e-06 | V147: 2.609810126e-06 | W147: 164286.2492 | X147: 0.4282767892 | Y147: 193781.7546 | Z147: 0.5674110804 | AA147: 7.692307692e-06 | AB147: 3.779535298e-06
B148: 0.45 | C148: 37.8 | D148: 47.25 | E148: DCM | F148: 1.492344719 | G148: 130000 | H148: 2.783294092e-06 | I148: 0.4519965102 | J148: 2.129991276 | K148: 1.23559262 | L148: 5.273135766e-06 | M148: 9.343816809e-10 | N148: 5.388326825e-06 | O148: 1.287835683 | P148: 3.453968254e-06 | Q148: -4.267697686e-06 | R148: -1.142566773e-07 | S148: -1.15451511e-09 | T148: 1.262003899 | U148: 5.500975803e-06 | V148: 2.353697474e-06 | W148: 181785.9296 | X148: 0.393259601 | Y148: 174403.5791 | Z148: 0.5382934151 | AA148: 7.692307692e-06 | AB148: 3.585582012e-06
B149: 0.4 | C149: 33.6 | D149: 42 | E149: DCM | F149: 1.406996094 | G149: 130000 | H149: 2.624114835e-06 | I149: 0.4302326109 | J149: 2.075581527 | K149: 1.098304551 | L149: 4.687231792e-06 | M149: 1.051179391e-09 | N149: 4.802539649e-06 | O149: 1.147829767 | P149: 3.885714286e-06 | Q149: -4.267697686e-06 | R149: -1.142566773e-07 | S149: -1.15451511e-09 | T149: 1.124673367 | U149: 4.915001848e-06 | V149: 2.09756948e-06 | W149: 203458.7231 | X149: 0.3582403154 | Y149: 155025.4036 | Z149: 0.5075078988 | AA149: 7.692307692e-06 | AB149: 3.38051914e-06
B150: 0.35 | C150: 29.4 | D150: 36.75 | E150: DCM | F150: 1.316124332 | G150: 130000 | H150: 2.454634664e-06 | I150: 0.4070603116 | J150: 2.017650779 | K150: 0.9610164825 | L150: 4.101327818e-06 | M150: 1.201347875e-09 | N150: 4.216785844e-06 | O150: 1.007831828 | P150: 4.440816327e-06 | Q150: -4.267697686e-06 | R150: -1.142566773e-07 | S150: -1.15451511e-09 | T150: 0.987331152 | U150: 4.329009022e-06 | V150: 1.841419698e-06 | W150: 230999.7496 | X150: 0.3232180506 | Y150: 135647.2282 | Z150: 0.4747301696 | AA150: 7.692307692e-06 | AB150: 3.162186103e-06
B151: 0.3 | C151: 25.2 | D151: 31.5 | E151: FFB | F151: 1.288436836 | G151: 116269.0527 | H151: 2.402996162e-06 | I151: 0.4 | J151: 1.968507648 | K151: 0.8237284136 | L151: 3.515423844e-06 | M151: 1.401572521e-09 | N151: 3.631082094e-06 | O151: 0.8678458525 | P151: 5.180952381e-06 | Q151: -4.267697686e-06 | R151: -1.142566773e-07 | S151: -1.15451511e-09 | T151: 0.8499715328 | U151: 3.742987371e-06 | V151: 1.585237456e-06 | W151: 267166.2768 | X151: 0.2881913478 | Y151: 116269.0527 | Z151: 0.4647432029 | AA151: 8.600740923e-06 | AB151: 3.09566274e-06
B152: 0.25 | C152: 21 | D152: 26.25 | E152: FFB | F152: 1.288436836 | G152: 96890.87728 | H152: 2.402996162e-06 | I152: 0.4 | J152: 1.908875844 | K152: 0.6864403447 | L152: 2.92951987e-06 | M152: 1.681887026e-09 | N152: 3.045458435e-06 | O152: 0.7278790186 | P152: 6.217142857e-06 | Q152: -4.267697686e-06 | R152: -1.142566773e-07 | S152: -1.15451511e-09 | T152: 0.7125846744 | U152: 3.15692164e-06 | V152: 1.329004411e-06 | W152: 316764.2768 | X152: 0.2531576988 | Y152: 96890.87728 | Z152: 0.4647432029 | AA152: 1.032088911e-05 | AB152: 3.09566274e-06
B153: 0.2 | C153: 16.8 | D153: 21 | E153: FFB | F153: 1.288436836 | G153: 77512.70182 | H153: 2.402996162e-06 | I153: 0.4 | J153: 1.819428139 | K153: 0.5491522757 | L153: 2.343615896e-06 | M153: 2.102358782e-09 | N153: 2.459974932e-06 | O153: 0.5879456831 | P153: 7.771428571e-06 | Q153: -4.267697686e-06 | R153: -1.142566773e-07 | S153: -1.15451511e-09 | T153: 0.5751512647 | U153: 2.570780623e-06 | V153: 1.072684546e-06 | W153: 388986.9058 | X153: 0.2181121794 | Y153: 77512.70182 | Z153: 0.4647432029 | AA153: 1.290111139e-05 | AB153: 3.09566274e-06
B154: 0.15 | C154: 12.6 | D154: 15.75 | E154: FFB | F154: 1.288436836 | G154: 58134.52637 | H154: 2.402996162e-06 | I154: 0.4 | J154: 1.670348629 | K154: 0.4118642068 | L154: 1.757711922e-06 | M154: 2.803145043e-09 | N154: 1.874771745e-06 | O154: 0.448079344 | P154: 1.036190476e-05 | Q154: -4.267697686e-06 | R154: -1.142566773e-07 | S154: -1.15451511e-09 | T154: 0.4376282692 | U154: 1.984496478e-06 | V154: 8.161975987e-07 | W154: 503906.1602 | X154: 0.1830438155 | Y154: 58134.52637 | Z154: 0.4647432029 | AA154: 1.720148185e-05 | AB154: 3.09566274e-06
B155: 0.1 | C155: 8.4 | D155: 10.5 | E155: FFB | F155: 1.288436836 | G155: 38756.35091 | H155: 2.402996162e-06 | I155: 0.4 | J155: 1.372189611 | K155: 0.2745761379 | L155: 1.171807948e-06 | M155: 4.204717564e-09 | N155: 1.290269343e-06 | O155: 0.3083804962 | P155: 1.554285714e-05 | Q155: -4.267697686e-06 | R155: -1.142566773e-07 | S155: -1.15451511e-09 | T155: 0.2998951375 | U155: 1.397879397e-06 | V155: 5.593187377e-07 | W155: 715369.2962 | X155: 0.147921867 | Y155: 38756.35091 | Z155: 0.4647432029 | AA155: 2.580222277e-05 | AB155: 3.09566274e-06
B156: 0.05 | C156: 4.2 | D156: 5.25 | E156: FFB | F156: 1.288436836 | G156: 19378.17546 | H156: 2.402996162e-06 | I156: 0.4 | J156: 0.4777125546 | K156: 0.1372880689 | L156: 5.859039741e-07 | M156: 8.409435128e-09 | N156: 7.085700865e-07 | O156: 0.1693516133 | P156: 3.108571429e-05 | Q156: -4.267697686e-06 | R156: -1.142566773e-07 | S156: -1.15451511e-09 | T156: 0.1614302844 | U156: 8.100855299e-07 | V156: 3.010751813e-07 | W156: 1234437.554 | X156: 0.1126133294 | Y156: 19378.17546 | Z156: 0.4647432029 | AA156: 5.160444554e-05 | AB156: 3.09566274e-06
B157: 0.01 | C157: 0.84 | D157: 1.05 | E157: FFB | F157: 1.288436836 | G157: 3875.635091 | H157: 2.402996162e-06 | I157: 0.4 | J157: -6.678103894 | K157: 0.02745761379 | L157: 1.171807948e-07 | M157: 4.204717564e-08 | N157: 2.734846478e-07 | O157: 0.06536412869 | P157: 0.0001554285714 | Q157: -4.267697686e-06 | R157: -1.142566773e-07 | S157: -1.15451511e-09 | T157: 0.04659328982 | U157: 3.374252723e-07 | V157: 8.689870821e-08 | W157: 2963619.154 | X157: 0.08332989579 | Y157: 3875.635091 | Z157: 0.4647432029 | AA157: 0.0002580222277 | AB157: 3.09566274e-06
B161: Operation Characteristics of Design Using LM and LLEAK at High Line
B162: VBULK(min) | C162: =C114 -> 777.8174593 | D162: V | E162: VAC, equiv | F162: =C162/SQRT(2) -> 550 | G162: V
B163: IP(max) | C163: =E114 -> 1.845343828 | D163: A
B164: TON at IP(max) | C164: =G114 -> 7.743722108e-07 | D164: s
B165: ZVS? | C165: =IF(Vreflect>C162,TRUE,FALSE) -> FALSE
B166: CDS, total | C166: =IF(C165=TRUE, (2*Coss_equiv/(SQRT(C162+Vreflect)))+Cds_stray,(2*Coss_equiv/(SQRT(C162+Vreflect)+SQRT(C162-Vreflect)))+Cds_stray) -> 1.995802818e-12 | D166: F
B167: resonant leakage time TL1=Tr/2pi | C167: =SQRT(Lleakage*C166) -> 3.573952718e-09 | D167: s
B168: resonant f, reset, Hz | C168: =1/(2*PI()*SQRT(Lpri_total*C166)) -> 6235714.758 | D168: Hz
B169: TR, dMAG-valley, seconds | C169: =IF(C165=TRUE,(1/(2*PI()*C168))*ACOS(-C162/Vreflect),1/(2*C168)) -> 8.018326999e-08 | D169: s
B170: residue dMAG(I), Amps | C170: =IF(C165=TRUE,-(Vreflect*SQRT((C166/Lmag)*(1-((C162/Vreflect)^2)))),0) -> 0 | D170: A
B171: VV, valley VDS, Volts | C171: =IF(C165=TRUE,0,(C162-Vreflect)) -> 641.9674593 | D171: V
B172: Tzv | C172: =IF(C165=TRUE,(Lmag/C162)*(-C170),0) -> 0 | D172: s
B173: Power limit offset, ICS RPL | C173: =AF114*$B$55 -> 0.3190435977 | D173: V
B174: IP, at DCM/FFB boundary | C174: =(Vcs_DCM-C173)/Rcs -> 0.3174760874 | D174: A
B175: P(burst boundary) | C175: =(1/2)*Lpri_total*(C174^2)*B71 -> 0.6579640793 | D175: W
B178: PLOAD/PRATED | C178: Pload | D178: PLINE | E178: Mode | F178: IP actual | G178: fS actual | H178: TON | I178: VCS | J178: VFB
C179: W | D179: W | F179: A | G179: Hz | H179: s | I179: V | J179: V | K179: Ip1 | L179: TS1 | M179: TL2 | N179: TE1 | O179: Ip2 | P179: a | Q179: b | R179: c | S179: d | T179: Ip, actual qr | U179: Ts, actual qr | V179: Ton, actual qr | W179: fs, actual qr | X179: Vcs,mx if QR | Y179: fs, FFB | Z179: Ip/Ipmx | AA179: Ts actual | AB179: Tdmag
B180: 1 | C180: =$B$8*B180 -> 84 | D180: =C180/eff -> 105 | E180: =ModeCheck(X180,W180,Y180,Vcs_DCM,f_swmax) -> DCM | F180: =IF(E180="QR",T180,IF(E180="DCM",SQRT(2*D180/(Lpri_total*f_swmax)),$C$174)) -> 2.224656158 | G180: =1/AA180 -> 130000 | H180: =F180*Lpri_total/$C$162 -> 9.335452186e-07 | I180: =F180*Rcs+$C$173 -> 0.8863309181 | J180: =IF(E180="FFB",(((1/G180)-$B$79)/$B$78),((I180+$B$65)*$B$64)) -> 3.215827295 | K180: =2*D180*(1/$C$162+1/Vreflect) -> 1.815808824 | L180: =K180*Lpri_total*(1/$C$162+1/Vreflect) -> 5.124731305e-06 | M180: =($C$162+Vreflect)*$C$166/K180 -> 1.004235724e-09 | N180: =$C$169+$C$172+$C$167+M180+L180 -> 5.209492764e-06 | O180: =(1/(1+$C$162/Vreflect))*N180*$C$162/Lmag -> 1.882758571 | P180: =Lpri_total/(2*D180) -> 1.554285714e-06 | Q180: =-(1/$C$162+1/Vreflect)*Lpri_total -> -2.822285715e-06 | R180: =-($C$169+$C$172+$C$167) -> -8.375722271e-08 | S180: =-($C$162+Vreflect)*$C$166 -> -1.82350009e-09 | T180: =Ifind(P180,Q180,R180,S180,K180,O180) -> 1.845343828 | U180: =(1/2)*Lpri_total*(T180^2)/D180 -> 5.292799575e-06 | V180: =T180*Lpri_total/$C$162 -> 7.743722108e-07 | W180: =1/U180 -> 188935.9281 | X180: =T180*Rcs+$C$173 -> 0.7896062739 | Y180: =2*D180/(($C$174^2)*Lpri_total) -> 6383327.194 | Z180: =F180/$C$120 -> 0.8024404454 | AA180: =(1/2)*Lpri_total*(F180^2)/D180 -> 7.692307692e-06 | AB180: =F180*Lpri_total/Vreflect -> 5.345070078e-06
B181: 0.95 | C181: 79.8 | D181: 99.75 | E181: DCM | F181: 2.168326606 | G181: 130000 | H181: 9.099073257e-07 | I181: 0.8719668823 | J181: 3.179917206 | K181: 1.725018383 | L181: 4.86849474e-06 | M181: 1.057090236e-09 | N181: =$C$169+$C$172+$C$167+M181+L181 -> 4.953309053e-06 | O181: 1.790171423 | P181: 1.636090226e-06 | Q181: -2.822285715e-06 | R181: =-($C$169+$C$172+$C$167) -> -8.375722271e-08 | S181: -1.82350009e-09 | T181: =Ifind(P181,Q181,R181,S181,K181,O181) -> 1.754546404 | U181: 5.036594278e-06 | V181: 7.36270367e-07 | W181: =1/U181 -> 198546.8642 | X181: 0.7664529307 | Y181: 6064160.835 | Z181: 0.7821221995 | AA181: 7.692307692e-06 | AB181: 5.209729881e-06
B182: 0.9 | C182: 75.6 | D182: 94.5 | E182: DCM | F182: 2.110494141 | G182: 130000 | H182: 8.856387568e-07 | I182: 0.8572196037 | J182: 3.143049009 | K182: 1.634227942 | L182: 4.612258175e-06 | M182: 1.115817471e-09 | N182: 4.697131215e-06 | O182: 1.697586397 | P182: 1.726984127e-06 | Q182: -2.822285715e-06 | R182: -8.375722271e-08 | S182: -1.82350009e-09 | T182: =Ifind(P182,Q182,R182,S182,K182,O182) -> 1.663748264 | U182: 4.780392724e-06 | V182: 6.981682231e-07 | W182: =1/U182 -> 209187.8341 | X182: 0.7432994051 | Y182: 5744994.475 | Z182: 0.7612618482 | AA182: 7.692307692e-06 | AB182: 5.07077871e-06
B183: 0.85 | C183: 71.4 | D183: 89.25 | E183: DCM | F183: 2.051031635 | G183: 130000 | H183: 8.606861646e-07 | I183: 0.8420566647 | J183: 3.105141662 | K183: 1.5434375 | L183: 4.356021609e-06 | M183: 1.181453793e-09 | N183: 4.440960286e-06 | O183: 1.605003869 | P183: 1.828571429e-06 | Q183: -2.822285715e-06 | R183: -8.375722271e-08 | S183: -1.82350009e-09 | T183: =Ifind(P183,Q183,R183,S183,K183,O183) -> 1.572949171 | U183: 4.524194916e-06 | V183: 6.60065679e-07 | W183: =1/U183 -> 221033.8013 | X183: 0.7201456363 | Y183: 5425828.115 | Z183: 0.739813536 | AA183: 7.692307692e-06 | AB183: 4.927911121e-06
B184: 0.8 | C184: 67.2 | D184: 84 | E184: DCM | F184: 1.989792959 | G184: 130000 | H184: 8.349882275e-07 | I184: 0.8264408022 | J184: 3.066102005 | K184: 1.452647059 | L184: 4.099785044e-06 | M184: 1.255294655e-09 | N184: 4.184797561e-06 | O184: 1.512424306 | P184: 1.942857143e-06 | Q184: -2.822285715e-06 | R184: -8.375722271e-08 | S184: -1.82350009e-09 | T184: 1.482148886 | U184: 4.268001192e-06 | V184: 6.219626347e-07 | W184: 234301.7153 | X184: 0.6969915636 | Y184: 5106661.755 | Z184: 0.7177245535 | AA184: 7.692307692e-06 | AB184: 4.780776015e-06
B185: 0.75 | C185: 63 | D185: 78.75 | E185: DCM | F185: 1.926608748 | G185: 130000 | H185: 8.084738749e-07 | I185: 0.8103288284 | J185: 3.025822071 | K185: 1.361856618 | L185: 3.843548479e-06 | M185: 1.338980966e-09 | N185: 3.928644683e-06 | O185: 1.419848301 | P185: 2.072380952e-06 | Q185: -2.822285715e-06 | R185: -8.375722271e-08 | S185: -1.82350009e-09 | T185: 1.391347289 | U185: 4.011813027e-06 | V185: 5.838590401e-07 | W185: 249263.8598 | X185: 0.6738371564 | Y185: 4787495.396 | Z185: 0.6949338107 | AA185: 7.692307692e-06 | AB185: 4.628966472e-06
B186: 0.7 | C186: 58.8 | D186: 73.5 | E186: DCM | F186: 1.86128088 | G186: 130000 | H186: 7.810599674e-07 | I186: 0.7936702222 | J186: 2.984175556 | K186: 1.271066177 | L186: 3.587311914e-06 | M186: 1.434622463e-09 | N186: 3.672503759e-06 | O186: 1.327276616 | P186: 2.220408163e-06 | Q186: -2.822285715e-06 | R186: -8.375722271e-08 | S186: -1.82350009e-09 | T186: 1.300544262 | U186: 3.755632511e-06 | V186: 5.457548452e-07 | W186: 266266.7332 | X186: 0.6506823845 | Y186: 4468329.036 | Z186: 0.6713698443 | AA186: 7.692307692e-06 | AB186: 4.472006473e-06
B187: 0.65 | C187: 54.6 | D187: 68.25 | E187: DCM | F187: 1.793575135 | G187: 130000 | H187: 7.526482172e-07 | I187: 0.7764052571 | J187: 2.941013143 | K187: 1.180275736 | L187: 3.331075348e-06 | M187: 1.544978037e-09 | N187: 3.416377549e-06 | O187: 1.23471025 | P187: 2.391208791e-06 | Q187: -2.822285715e-06 | R187: -8.375722271e-08 | S187: -1.82350009e-09 | T187: 1.209739089 | U187: 3.499459134e-06 | V187: 5.076497499e-07 | W187: 285758.4449 | X187: 0.6275270654 | Y187: 4149162.676 | Z187: 0.6469481698 | AA187: 7.692307692e-06 | AB187: 4.309333265e-06
B188: 0.6 | C188: 50.4 | D188: 63 | E188: DCM | F188: 1.72321125 | G188: 130000 | H188: 7.231210169e-07 | I188: 0.7584624666 | J188: 2.896156166 | K188: 1.089485294 | L188: 3.074838783e-06 | M188: 1.673726207e-09 | N188: 3.160269732e-06 | O188: 1.142150531 | P188: 2.59047619e-06 | Q188: -2.822285715e-06 | R188: -8.375722271e-08 | S188: -1.82350009e-09 | T188: 1.118931413 | U188: 3.243295635e-06 | V188: 4.69543604e-07 | W188: 308328.3525 | X188: 0.604371108 | Y188: 3829996.317 | Z188: 0.6215676962 | AA188: 7.692307692e-06 | AB188: 4.140273479e-06
B189: 0.55 | C189: 46.2 | D189: 57.75 | E189: DCM | F189: 1.649849164 | G189: 130000 | H189: 6.923356638e-07 | I189: 0.7397551344 | J189: 2.849387836 | K189: 0.9986948532 | L189: 2.818602218e-06 | M189: 1.825883135e-09 | N189: 2.904185324e-06 | O189: 1.049599271 | P189: 2.825974026e-06 | Q189: -2.822285715e-06 | R189: -8.375722271e-08 | S189: -1.82350009e-09 | T189: 1.028120756 | U189: 2.987145794e-06 | V189: 4.314362075e-07 | W189: 334767.7244 | X189: 0.5812143905 | Y189: 3510829.957 | Z189: 0.5951057617 | AA189: 7.692307692e-06 | AB189: 3.964010062e-06
B190: 0.5 | C190: 42 | D190: 52.5 | E190: DCM | F190: 1.573069455 | G190: 130000 | H190: 6.601161546e-07 | I190: 0.7201763088 | J190: 2.800440772 | K190: 0.907904412 | L190: 2.562365653e-06 | M190: 2.008471449e-09 | N190: 2.648131347e-06 | O190: 0.9570590105 | P190: 3.108571429e-06 | Q190: -2.822285715e-06 | R190: -8.375722271e-08 | S190: -1.82350009e-09 | T190: 0.9373058081 | U190: 2.731011113e-06 | V190: 3.933270102e-07 | W190: 366164.7495 | X190: 0.5580565788 | Y190: 3191663.597 | Z190: 0.5674110804 | AA190: 7.692307692e-06 | AB190: 3.779535298e-06
B191: 0.45 | C191: 37.8 | D191: 47.25 | E191: DCM | F191: 1.492344719 | G191: 130000 | H191: 6.262411706e-07 | I191: 0.699591501 | J191: 2.748978753 | K191: 0.8171139708 | L191: 2.306129087e-06 | M191: 2.231634943e-09 | N191: 2.392117945e-06 | O191: 0.8645334138 | P191: 3.453968254e-06 | Q191: -2.822285715e-06 | R191: -8.375722271e-08 | S191: -1.82350009e-09 | T191: 0.8464853764 | U191: 2.474897751e-06 | V191: 3.552155117e-07 | W191: 404057.0967 | X191: 0.5348973687 | Y191: 2872497.237 | Z191: 0.5382934151 | AA191: 7.692307692e-06 | AB191: 3.585582012e-06
B192: 0.4 | C192: 33.6 | D192: 42 | E192: DCM | F192: 1.406996094 | G192: 130000 | H192: 5.904258379e-07 | I192: 0.6778276017 | J192: 2.694569004 | K192: 0.7263235296 | L192: 2.049892522e-06 | M192: 2.510589311e-09 | N192: 2.136160334e-06 | O192: 0.7720279804 | P192: 3.885714286e-06 | Q192: -2.822285715e-06 | R192: -8.375722271e-08 | S192: -1.82350009e-09 | T192: 0.7556572556 | U192: 2.218812365e-06 | V192: 3.171007867e-07 | W192: 450691.5573 | X192: 0.5117361979 | Y192: 2553330.878 | Z192: 0.5075078988 | AA192: 7.692307692e-06 | AB192: 3.38051914e-06
B193: 0.35 | C193: 29.4 | D193: 36.75 | E193: DCM | F193: 1.316124332 | G193: 130000 | H193: 5.522927994e-07 | I193: 0.6546553024 | J193: 2.636638256 | K193: 0.6355330884 | L193: 1.793655957e-06 | M193: 2.869244927e-09 | N193: 1.880282424e-06 | O193: 0.6795513518 | P193: 4.440816327e-06 | Q193: -2.822285715e-06 | R193: -8.375722271e-08 | S193: -1.82350009e-09 | T193: 0.6648182869 | U193: 1.962766897e-06 | V193: 2.789815094e-07 | W193: 509484.8509 | X193: 0.4885722609 | Y193: 2234164.518 | Z193: 0.4747301696 | AA193: 7.692307692e-06 | AB193: 3.162186103e-06
B194: 0.3 | C194: 25.2 | D194: 31.5 | E194: DCM | F194: 1.218494361 | G194: 130000 | H194: 5.113237747e-07 | I194: 0.6297596597 | J194: 2.574399149 | K194: 0.5447426472 | L194: 1.537419392e-06 | M194: 3.347452414e-09 | N194: 1.624524067e-06 | O194: 0.5871179304 | P194: 5.180952381e-06 | Q194: -2.822285715e-06 | R194: -8.375722271e-08 | S194: -1.82350009e-09 | T194: 0.5739626884 | U194: 1.706777555e-06 | V194: 2.408552537e-07 | W194: 585899.4321 | X194: 0.4654040833 | Y194: 1914998.158 | Z194: 0.439514733 | AA194: 7.692307692e-06 | AB194: 2.927615453e-06
B195: 0.25 | C195: 21 | D195: 26.25 | E195: DCM | F195: 1.112328079 | G195: 130000 | H195: 4.667726093e-07 | I195: 0.6026872579 | J195: 2.506718145 | K195: 0.453952206 | L195: 1.281182826e-06 | M195: 4.016942897e-09 | N195: 1.368956992e-06 | O195: 0.4947536404 | P195: 6.217142857e-06 | Q195: -2.822285715e-06 | R195: -8.375722271e-08 | S195: -1.82350009e-09 | T195: 0.4830805659 | U195: 1.45087494e-06 | V195: 2.027178676e-07 | W195: 689239.2807 | X195: 0.442229142 | Y195: 1595831.799 | Z195: 0.4012202227 | AA195: 7.692307692e-06 | AB195: 2.672535039e-06
B196: 0.2 | C196: 16.8 | D196: 21 | E196: DCM | F196: 0.9948964793 | G196: 130000 | H196: 4.174941138e-07 | I196: 0.5727421999 | J196: 2.4318555 | K196: 0.3631617648 | L196: 1.024946261e-06 | M196: 5.021178621e-09 | N196: 1.113724662e-06 | O196: 0.4025103304 | P196: 7.771428571e-06 | Q196: -2.822285715e-06 | R196: -8.375722271e-08 | S196: -1.82350009e-09 | T196: 0.392151773 | U196: 1.195113701e-06 | V196: 1.645608969e-07 | W196: 836740.4698 | X196: 0.4190422998 | Y196: 1276665.439 | Z196: 0.3588622767 | AA196: 7.692307692e-06 | AB196: 2.390388008e-06
B197: 0.15 | C197: 12.6 | D197: 15.75 | E197: DCM | F197: 0.8616056252 | G197: 130000 | H197: 3.615605085e-07 | I197: 0.5387530321 | J197: 2.34688258 | K197: 0.2723713236 | L197: 7.687096958e-07 | M197: 6.694904829e-09 | N197: 8.591618233e-07 | O197: 0.3105089804 | P197: 1.036190476e-05 | Q197: -2.822285715e-06 | R197: -8.375722271e-08 | S197: -1.82350009e-09 | T197: 0.3011291921 | U197: 9.396049895e-07 | V197: 1.263645694e-07 | W197: 1064277.022 | X197: 0.3958315417 | Y197: 957499.0791 | Z197: 0.3107838481 | AA197: 7.692307692e-06 | AB197: 2.07013674e-06
B198: 0.1 | C198: 8.4 | D198: 10.5 | E198: DCM | F198: 0.7034980471 | G198: 130000 | H198: 2.952129189e-07 | I198: 0.4984355997 | J198: 2.246088999 | K198: 0.1815808824 | L198: 5.124731305e-07 | M198: 1.004235724e-08 | N198: 6.062727105e-07 | O198: 0.2191125305 | P198: 1.554285714e-05 | Q198: -2.822285715e-06 | R198: -8.375722271e-08 | S198: -1.82350009e-09 | T198: 0.2098724842 | U198: 6.846078296e-07 | V198: 8.806999383e-08 | W198: 1460690.277 | X198: 0.3725610812 | Y198: 638332.7194 | Z198: 0.2537539494 | AA198: 7.692307692e-06 | AB198: 1.69025957e-06
B199: 0.05 | C199: 4.2 | D199: 5.25 | E199: DCM | F199: 0.4974482397 | G199: 130000 | H199: 2.087470569e-07 | I199: 0.4458928988 | J199: 2.114732247 | K199: 0.0907904412 | L199: 2.562365653e-07 | M199: 2.008471449e-08 | N199: 3.600785025e-07 | O199: 0.1301356806 | P199: 3.108571429e-05 | Q199: -2.822285715e-06 | R199: -8.375722271e-08 | S199: -1.82350009e-09 | T199: 0.1176954433 | U199: 4.306060717e-07 | V199: 4.938921368e-08 | W199: 2322308.174 | X199: 0.3490559358 | Y199: 319166.3597 | Z199: 0.1794311384 | AA199: 7.692307692e-06 | AB199: 1.195194004e-06
B200: 0.01 | C200: 0.84 | D200: 1.05 | E200: FFB | F200: 0.3174760874 | G200: 63833.27194 | H200: 1.332243108e-07 | I200: 0.4 | J200: 1.723585204 | K200: 0.01815808824 | L200: 5.124731305e-08 | M200: 1.004235724e-07 | N200: 2.354281082e-07 | O200: 0.08508588237 | P200: 0.0001554285714 | Q200: -2.822285715e-06 | R200: -8.375722271e-08 | S200: -1.82350009e-09 | T200: 0.03932461515 | U200: 2.40358684e-07 | V200: 1.650201372e-08 | W200: 4160448.806 | X200: 0.3290713746 | Y200: 63833.27194 | Z200: 0.1145146193 | AA200: 1.566581141e-05 | AB200: 7.627839155e-07
B203: Actual Power Limit, as Programmed by Actual RPL, ROVP1 & ROVP2 Values
B204: Trial | C204: VBULK | D204: fS | E204: PIN(limit) | F204: IPRI(rms) | G204: ISEC(rms)
C205: V | D205: Hz | E205: W | F205: ARMS | G205: ARMS | H205: ZVS? | I205: Cds, total | J205: Ics, pl | K205: Ics,pl x Rpl | L205: Ip | M205: Ton | N205: T leakage | O205: Tdmag | P205: residue demag I Amps | Q205: Tzv | R205: Tvalley | S205: Ts
B206: =B91 -> 0 | C206: =Vbulk -> 175.0089283 | D206: =1/S206 -> 81249.63622 | E206: =(1/2)*(L206^2)*Lpri_total*D206 -> 108.23846 | F206: =L206*SQRT(M206/(3*S206)) -> 1.08536316 | G206: =L206*$B$47*SQRT(O206/(3*S206)) -> 6.775448479 | H206: =ZVS -> FALSE | I206: =N91 -> 3.713951906e-12 | J206: =AF91 -> 4.763240459e-05 | K206: =J206*$B$55 -> 0.07144860688 | L206: =($B$67-K206)/Rcs -> 2.857064287 | M206: =Lpri_total*L206/C206 -> 5.328561188e-06 | N206: =SQRT(Lleakage*I206)+(I206/L206)*(C206+$B$47*($B$17+$B$37)) -> 5.279467509e-09 | O206: =Lpri_total*L206/(($B$17+$B$37)*$B$47) -> 6.864525456e-06 | P206: =R91 -> 0 | Q206: =T91 -> 0 | R206: =IF(H206=TRUE,SQRT(Lpri_total*I206)*ACOS(C206/(($B$17+$B$37)*$B$47)),SQRT(Lpri_total*I206)*PI()) -> 1.093813012e-07 | S206: =M206+N206+O206+Q206+R206 -> 1.230774741e-05
B207: 1 | C207: 205.1493549 | D207: 88293.495 | E207: 113.6587157 | F207: 1.018495549 | G207: 6.883781571 | H207: =M92 -> FALSE | I207: 3.387490613e-12 | J207: 5.588557095e-05 | K207: 0.08382835643 | L207: 2.808516249 | M207: 4.468450336e-06 | N207: 5.067468458e-09 | O207: 6.747881515e-06 | P207: 0 | Q207: 0 | R207: 1.044633618e-07 | S207: =M207+N207+O207+Q207+R207 -> 1.132586268e-05
B208: 2 | C208: 235.2897814 | D208: 94645.01219 | E208: 117.659242 | F208: 0.9592192823 | G208: 6.943082115 | H208: FALSE | I208: 3.162638169e-12 | J208: 6.413873731e-05 | K208: 0.09620810597 | L208: 2.759968212 | M208: 3.828698462e-06 | N208: 4.924274839e-09 | O208: 6.631237574e-06 | P208: 0 | Q208: 0 | R208: 1.009368394e-07 | S208: 1.056579715e-05
B209: 3 | C209: 265.430208 | D209: 100484.0866 | E209: 120.5621794 | F209: 0.9061146526 | G209: 6.966123909 | H209: FALSE | I209: 2.991876166e-12 | J209: 7.239190367e-05 | K209: 0.1085878555 | L209: 2.711420174 | M209: 3.334238223e-06 | N209: 4.818630291e-09 | O209: 6.514593632e-06 | P209: 0 | Q209: 0 | R209: 9.81740607e-08 | S209: 9.951824546e-06
B210: 4 | C210: 295.5706345 | D210: 105941.036 | E210: 122.598455 | F210: 0.8581068795 | G210: 6.961533123 | H210: FALSE | I210: 2.855125285e-12 | J210: 8.064507003e-05 | K210: 0.1209676051 | L210: 2.662872137 | M210: 2.940621848e-06 | N210: 4.737237988e-09 | O210: 6.397949691e-06 | P210: 0 | Q210: 0 | R210: 9.590417921e-08 | S210: 9.439212956e-06
B211: 5 | C211: 325.7110611 | D211: 111113.4038 | E211: 123.9382784 | F211: 0.8143677365 | G211: 6.935370731 | H211: FALSE | I211: 2.741801335e-12 | J211: 8.889823639e-05 | K211: 0.1333473546 | L211: 2.6143241 | M211: 2.619853877e-06 | N211: 4.6730443e-09 | O211: 6.28130575e-06 | P211: 0 | Q211: 0 | R211: 9.398162274e-08 | S211: 8.999814294e-06
B212: 6 | C212: 355.8514876 | D212: 116076.2707 | E212: 124.7099483 | F212: 0.7742476604 | G212: 6.892030055 | H212: FALSE | I212: 2.645588897e-12 | J212: 9.715140276e-05 | K212: 0.1457271041 | L212: 2.565776062 | M212: 2.35342365e-06 | N212: 4.621819776e-09 | O212: 6.164661809e-06 | P212: 0 | Q212: 0 | R212: 9.231794477e-08 | S212: 8.615025223e-06
B213: 7 | C213: 385.9919142 | D213: 120888.9327 | E213: 125.0120319 | F213: 0.7372290723 | G213: 6.834778188 | H213: FALSE | I213: 2.562402842e-12 | J213: 0.0001054045691 | K213: 0.1581068537 | L213: 2.517228025 | M213: 2.128602173e-06 | N213: 4.580821595e-09 | O213: 6.048017867e-06 | P213: 0 | Q213: 0 | R213: 9.085496206e-08 | S213: 8.272055824e-06
B214: 8 | C214: 416.1323407 | D214: 125599.3825 | E214: 124.9215176 | F214: 0.7028937145 | G214: 6.766097668 | H214: FALSE | I214: 2.489444987e-12 | J214: 0.0001136577355 | K214: 0.1704866032 | L214: 2.468679987 | M214: 1.936348294e-06 | N214: 4.54817233e-09 | O214: 5.931373926e-06 | P214: 0 | Q214: 0 | R214: 8.955219071e-08 | S214: 7.961822583e-06
B215: 9 | C215: 446.2727673 | D215: 130247.4054 | E215: 124.4994192 | F215: 0.6708993372 | G215: 6.687910058 | H215: FALSE | I215: 2.424714528e-12 | J215: 0.0001219109018 | K215: 0.1828663528 | L215: 2.42013195 | M215: 1.770063348e-06 | N215: 4.522536263e-09 | O215: 5.814729985e-06 | P215: 0 | Q215: 0 | R215: 8.838025598e-08 | S215: 7.677696125e-06
B216: 10 | C216: 476.4131938 | D216: 134866.7748 | E216: 123.7947188 | F216: 0.6409627441 | G216: 6.601726759 | H216: FALSE | I216: 2.366731985e-12 | J216: 0.0001301640682 | K216: 0.1952461023 | L216: 2.371583913 | M216: 1.624818538e-06 | N216: 4.502936168e-09 | O216: 5.698086044e-06 | P216: 0 | Q216: 0 | R216: 8.731713708e-08 | S216: 7.414724655e-06
B217: 11 | C217: 506.5536204 | D217: 139486.8463 | E217: 122.8471946 | F217: 0.6128472457 | G217: 6.508753415 | H217: FALSE | I217: 2.314373391e-12 | J217: 0.0001384172346 | K217: 0.2076258518 | L217: 2.323035875 | M217: 1.496858139e-06 | N217: 4.488642913e-09 | O217: 5.581442103e-06 | P217: 0 | Q217: 0 | R217: 8.634588824e-08 | S217: 7.169134773e-06
B218: 12 | C218: 536.6940469 | D218: 144133.7446 | E218: 121.6894874 | F218: 0.5863532299 | G218: 6.409963831 | H218: FALSE | I218: 2.266765619e-12 | J218: 0.0001466704009 | K218: 0.2200056014 | L218: 2.274487838 | M218: 1.383270104e-06 | N218: 4.479105626e-09 | O218: 5.464798161e-06 | P218: 0 | Q218: 0 | R218: 8.545318537e-08 | S218: 6.938000557e-06
B219: 13 | C219: 566.8344735 | D219: 148831.2672 | E219: 120.3486336 | F219: 0.5613109729 | G219: 6.306153355 | H219: FALSE | I219: 2.223217584e-12 | J219: 0.0001549235673 | K219: 0.2323853509 | L219: 2.2259398 | M219: 1.281761757e-06 | N219: 4.473905789e-09 | O219: 5.34815422e-06 | P219: 0 | Q219: 0 | R219: 8.462836142e-08 | S219: 6.719018245e-06
B220: 14 | C220: 596.9749 | D220: 153601.592 | E220: 118.8472187 | F220: 0.5375750871 | G220: 6.197978106 | H220: FALSE | I220: 2.183173466e-12 | J220: 0.0001631767336 | K220: 0.2447651005 | L220: 2.177391763 | M220: 1.190503439e-06 | N220: 4.472726143e-09 | O220: 5.231510279e-06 | P220: 0 | Q220: 0 | R220: 8.386274428e-08 | S220: 6.510349188e-06
B221: 15 | C221: 627.1153266 | D221: 158465.8454 | E221: 117.204258 | F221: 0.5150201831 | G221: 6.085984255 | H221: FALSE | I221: 2.146180019e-12 | J221: 0.0001714299 | K221: 0.25714485 | L221: 2.128843725 | M221: 1.108017238e-06 | N221: 4.475329134e-09 | O221: 5.114866338e-06 | P221: 0 | Q221: 0 | R221: 8.314918971e-08 | S221: 6.310508095e-06
B222: 16 | C222: 657.2557531 | D222: 163444.5742 | E222: 115.4358753 | F222: 0.4935374433 | G222: 5.970630198 | H222: FALSE | I222: 2.111863143e-12 | J222: 0.0001796830664 | K222: 0.2695245995 | L222: 2.080295688 | M222: 1.033096339e-06 | N222: 4.481541713e-09 | O222: 4.998222397e-06 | P222: 0 | Q222: 0 | R222: 8.248174363e-08 | S222: 6.118282021e-06
B223: 17 | C223: 687.3961797 | D223: 168558.1509 | E223: 113.5558324 | F223: 0.4730318888 | G223: 5.852303551 | H223: FALSE | I223: 2.079910759e-12 | J223: 0.0001879362327 | K223: 0.2819043491 | L223: 2.031747651 | M223: 9.647455904e-07 | N223: 4.491244535e-09 | O223: 4.881578455e-06 | P223: 0 | Q223: 0 | R223: 8.185539309e-08 | S223: 5.932670683e-06
B224: 18 | C224: 717.5366062 | D224: 173827.1335 | E224: 111.5759468 | F224: 0.4534201794 | G224: 5.731334335 | H224: FALSE | I224: 2.050060038e-12 | J224: 0.0001961893991 | K224: 0.2942840986 | L224: 1.983199613 | M224: 9.021370452e-07 | N224: 4.504364276e-09 | O224: 4.764934514e-06 | P224: 0 | Q224: 0 | R224: 8.126587911e-08 | S224: 5.752841803e-06
... 2 more rows

Sheet Magnetic Specification
A1: Flyback Inductor Specification for the UCC28600 Greenmode Quasi-Resonant Converter
A2: The flyback transformer plays a crucial role in the performance of the green mode controller. Considerations must be given to adequate coupling for the bias windings, minimizing leakage inductance, and minimizing audible noise. All of these criteria can easily be met with proper transformer design from the start.
A4: GENERAL:
A5: Topology: | B5: Quasi-Resonant Flyback with Bias Winding
A6: Main Output Power: | B6: ='QR Design Tool'!C10 -> 84 | C6: W
A7: Anticipated Overall Efficiency of the Converter: | B7: ='QR Design Tool'!C12 -> 0.8
A8: Maximum Switching Frequency, min input, max load: | B8: ='QR Design Tool'!C21 -> 80000 | C8: Hz at full load, min input
A9: Maximum Switching Frequency: | B9: 130000 | C9: Hz, DCM mode
A10: Minimum Switching Frequency: | B10: Burst packets of 40kHz pulses at loads of 15% or less
A12: INPUT:
A13: Minimum Input Voltage: | B13: ='QR Design Tool'!C20 -> 175.0089283 | C13: V
A14: Maximum Input Voltage: | B14: ='QR Design Tool'!F16 -> 777.8174593 | C14: V
A15: Peak PRIMARY Current: | B15: ='QR Simulator'!E113 -> 2.772362947 | C15: A
A16: PRIMARY RMS Current: | B16: ='QR Simulator'!K113 -> 1.053037798 | C16: A
A17: Duty Cycle at Minimum Input Voltage, Maximum Load: | B17: ='QR Simulator'!AE113 -> 0.432821677
A18: Duty Cycle at Maximum Input Voltage, Maximum Load: | B18: ='QR Simulator'!AE114 -> 0.1463067323
A20: OUTPUTS:
A21: SECONDARY Output Voltage: | B21: =Vout_actual -> 24 | C21: V
A22: SECONDARY Output Peak Current: | B22: =B15*B30 -> 15.24799621 | C22: A
A23: SECONDARY RMS Current: | B23: ='QR Simulator'!L113 -> 6.573655355 | C23: A
A24: BIAS Voltage: | B24: =Vbias_actual -> 18.00008182 | C24: V
A25: Approximate RMS BIAS Current: | B25: =3*((0.007)+(fvmin_maxload*Qg))+(Vbias_actual/(Rovp1_actual+Rovp2_actual)) -> 0.02225974139 | C25: A
A27: INDUCTANCE AND TURNS RATIO:
A28: Magnetizing Inductance: | B28: =Lmag -> 0.00032 | C28: H
A29: Maximum Leakage Inductance: | B29: =Lleakage -> 6.4e-06 | C29: H
A30: PRIMARY to SECONDARY Turns Ratio (NPRI/NSEC): | B30: =Nps_actual -> 5.5
A31: PRIMARY to BIAS Turns Ratio (NPRI/NBIAS): | B31: =Npb_actual -> 7.3333
A32: Isolation Requirement: | G32: fill in specific requirement for application
A34: SPECIAL NOTES REGARDING THE FLYBACK TRANSFORMER:
A35: 1. The BIAS windings must be well coupled to the PRIMARY. Interleave BIAS and SECONDARY windings between the primary for equal coupling.
A36: 2. Use bundled stranded wire.
A37: 3. Encase the windings in as much Ferrite as possible; a round post core is a must to help reduce leakage.
A38: 4. Do not use tape barriers. Use triple insulated wire on the SECONDARY to meet the isolation requirement while minimizing leakage inductance.
A39: 5. Must be potted or heavily varnished to reduce audible noise. Also, fill the gap with flexible epoxy to reduce audible noise.
A40: 6. Distribute the BIAS windings over the entire width of the bobbin.
A41: 7. Place the dot end of the PRIMARY winding as close to the core as possible to help shield the dv/dt noise.
A42: 8. Wind the SECONDARY so that the non-dot end is the outer most layer.
A56: Example of a recommended transformer design. Use multiple strand wire to distribute each of the coils across the layer.
A58: For more information refer to: http://focus.ti.com/lit/an/slua418/slua418.pdf

Sheet Lookuptables (hidden)
E1: Std. Resistors | J1: Capacitors
E2: E6 | G2: E96 | J2: Cap value
E3: 100 | F3: 150 | G3: 100 | H3: 102
E4: 150 | F4: 220 | G4: 102 | H4: 105
E5: 220 | F5: 330 | G5: 105 | H5: 107 | J5: C values up to 10nF
B6: RCL | C6: =VLOOKUP(((10^(LOG(33.2*SQRT(0.54*Lp_initial2*10^6/Pin))-INT(LOG(33.2*SQRT(0.54*Lp_initial2*10^6/Pin))))*100)*0.95),E48_s:E48_f,1)*10^INT(LOG(33.2*SQRT(0.54*Lp_initial2*10^6/Pin)))/100 -> 30.1 | E6: 330 | F6: 470 | G6: 107 | H6: 110 | J6: 1 | K6: 1.2 | M6: CSNUB | N6: =((Lleak*10^-6)*Idrv^2)/(Vclamp*(Vclamp+(2*((Vout+0.7)*Nps+Vin_max))))*10^12 -> 158.4376567 | O6: pF
C7: =IF(C6<24.9,24.9,IF(C6>100,100,C6)) -> 30.1 | E7: 470 | F7: 680 | G7: 110 | H7: 113 | J7: 1.2 | K7: 1.5 | N7: =(IF(N6<10000,N8*10^INT(LOG(N6)),N9*10^INT(LOG(N6)))) -> 150 | O7: pF
B8: RMOT | C8: =(IF(FAULT="SHUTDOWN/RETRY",((76*10^3)/(3.8*10^-6))*(Idrv*Lp*1.1*10^-6/(SQRT(2)*Vbrownout-Vinput_ripple)),((383*10^3)/(3.83*10^-6)*(Idrv*Lp*1.1*10^-6/Vbrownout-Vinput_ripple))))/10^3 -> 89.50227292 | E8: 680 | F8: 1000 | G8: 113 | H8: 115 | J8: 1.5 | K8: 1.8 | N8: =IF((10^(LOG(N6)-INT(LOG(N6))))-VLOOKUP((10^(LOG(N6)-INT(LOG(N6)))),c_s1:C_f1,1)<VLOOKUP((10^(LOG(N6)-INT(LOG(N6)))),c_s1:C_f1,2)-(10^(LOG(N6)-INT(LOG(N6)))),VLOOKUP((10^(LOG(N6)-INT(LOG(N6)))),c_s1:C_f1,1),VLOOKUP((10^(LOG(N6)-INT(LOG(N6)))),c_s1:C_f1,2)) -> 1.5
C9: =(IF((10^(LOG(C8)-INT(LOG(C8)))*100)-VLOOKUP((10^(LOG(C8)-INT(LOG(C8)))*100),E48_s:E48_f,1)<VLOOKUP((10^(LOG(C8)-INT(LOG(C8)))*100),E48_s:E48_f,2)-(10^(LOG(C8)-INT(LOG(C8)))*100),VLOOKUP((10^(LOG(C8)-INT(LOG(C8)))*100),E48_s:E48_f,1),VLOOKUP((10^(LOG(C8)-INT(LOG(C8)))*100),E48_s:E48_f,2)))*10^INT(LOG(C8))/100 -> 90.9 | E9: E12 | G9: 115 | H9: 118 | J9: 1.8 | K9: 2.2 | N9: =IF((10^(LOG(N6)-INT(LOG(N6))))-VLOOKUP((10^(LOG(N6)-INT(LOG(N6)))),C_s2:C_f2,1)<VLOOKUP((10^(LOG(N6)-INT(LOG(N6)))),C_s2:C_f2,2)-(10^(LOG(N6)-INT(LOG(N6)))),VLOOKUP((10^(LOG(N6)-INT(LOG(N6)))),C_s2:C_f2,1),VLOOKUP((10^(LOG(N6)-INT(LOG(N6)))),C_s2:C_f2,2)) -> 1.5
B10: RSNUB1 | C10: =10/((Csnub*(10^-12))*(fswmax*10^3))/10^3 -> 395.8333333 | E10: 100 | F10: 120 | G10: 118 | H10: 121 | J10: 2.2 | K10: 2.7
C11: =(IF((10^(LOG(C10)-INT(LOG(C10)))*100)-VLOOKUP((10^(LOG(C10)-INT(LOG(C10)))*100),E48_s:E48_f,1)<VLOOKUP((10^(LOG(C10)-INT(LOG(C10)))*100),E48_s:E48_f,2)-(10^(LOG(C10)-INT(LOG(C10)))*100),VLOOKUP((10^(LOG(C10)-INT(LOG(C10)))*100),E48_s:E48_f,1),VLOOKUP((10^(LOG(C10)-INT(LOG(C10)))*100),E48_s:E48_f,2)))*10^INT(LOG(C10))/100 -> 402 | E11: 120 | F11: 150 | G11: 121 | H11: 124 | J11: 2.7 | K11: 3.3
B12: RSNUB2 | C12: =SQRT((Lleak*10^-6)/(Coss*10^-12)) -> 666666666.7 | E12: 150 | F12: 180 | G12: 124 | H12: 127 | J12: 3.3 | K12: 3.9
C13: =(IF((10^(LOG(C12)-INT(LOG(C12)))*100)-VLOOKUP((10^(LOG(C12)-INT(LOG(C12)))*100),E48_s:E48_f,1)<VLOOKUP((10^(LOG(C12)-INT(LOG(C12)))*100),E48_s:E48_f,2)-(10^(LOG(C12)-INT(LOG(C12)))*100),VLOOKUP((10^(LOG(C12)-INT(LOG(C12)))*100),E48_s:E48_f,1),VLOOKUP((10^(LOG(C12)-INT(LOG(C12)))*100),E48_s:E48_f,2)))*10^INT(LOG(C12))/100 -> 681000000 | E13: 180 | F13: 220 | G13: 127 | H13: 130 | J13: 3.9 | K13: 4.7
E14: 220 | F14: 270 | G14: 130 | H14: 133 | J14: 4.7 | K14: 5.6
E15: 270 | F15: 330 | G15: 133 | H15: 137 | J15: 5.6 | K15: 6.8
E16: 330 | F16: 390 | G16: 137 | H16: 140 | J16: 6.8 | K16: 8.2 | M16: Cin_AC | N16: t1 | O16: =((1/47)/(2*PI()))*ASIN(Vbulk_valley/Vbulkmin) -> 0.002871771743 | P16: s
E17: 390 | F17: 470 | G17: 140 | H17: 143 | J17: 8.2 | K17: 10 | N17: t3 | O17: =((1/47)/2)+O16 -> 0.01351006962 | P17: s
E18: 470 | F18: 560 | G18: 143 | H18: 147 | J18: C values greater than 10nF | N18: t2 | O18: =((1/47)/4) -> 0.005319148936 | P18: s
E19: 560 | F19: 680 | G19: 147 | H19: 150 | J19: 1 | K19: 1.5 | N19: tdischarge | O19: =O17-(O18) -> 0.008190920679 | P19: s
E20: 680 | F20: 820 | G20: 150 | H20: 154 | J20: 1.5 | K20: 2.2 | N20: Cin_0 | O20: =((2*Pin_est*Lookuptables!O19)/((Vbulkmin^2)-(Vbulk_valley)^2))*10^12 -> 72206463.29 | P20: pF
E21: 820 | F21: 1000 | G21: 154 | H21: 158 | J21: 2.2 | K21: 3.3 | O21: =(IF(O20<10000,O22*10^INT(LOG(O20)),O23*10^INT(LOG(O20))))*10^-6 -> 68 | P21: uF
E22: E24 | G22: 158 | H22: 162 | J22: 3.3 | K22: 4.7 | O22: =IF((10^(LOG(O20)-INT(LOG(O20))))-VLOOKUP((10^(LOG(O20)-INT(LOG(O20)))),c_s1:C_f1,1)<VLOOKUP((10^(LOG(O20)-INT(LOG(O20)))),c_s1:C_f1,2)-(10^(LOG(O20)-INT(LOG(O20)))),VLOOKUP((10^(LOG(O20)-INT(LOG(O20)))),c_s1:C_f1,1),VLOOKUP((10^(LOG(O20)-INT(LOG(O20)))),c_s1:C_f1,2)) -> 6.8
E23: 100 | F23: 110 | G23: 162 | H23: 165 | J23: 4.7 | K23: 6.8 | O23: =IF((10^(LOG(O20)-INT(LOG(O20))))-VLOOKUP((10^(LOG(O20)-INT(LOG(O20)))),C_s2:C_f2,1)<VLOOKUP((10^(LOG(O20)-INT(LOG(O20)))),C_s2:C_f2,2)-(10^(LOG(O20)-INT(LOG(O20)))),VLOOKUP((10^(LOG(O20)-INT(LOG(O20)))),C_s2:C_f2,1),VLOOKUP((10^(LOG(O20)-INT(LOG(O20)))),C_s2:C_f2,2)) -> 6.8
E24: 110 | F24: 120 | G24: 165 | H24: 169 | J24: 6.8 | K24: 10
E25: 120 | F25: 130 | G25: 169 | H25: 174 | N25: First iteration | R25: With ACTUAL VALUE:
E26: 130 | F26: 150 | G26: 174 | H26: 178 | N26: VBULKmin_1 | O26: =(SQRT(2*(O21*10^-6)*(((O21*10^-6)*Vac_min^2)-Pin_est*Lookuptables!O19)))/(Lookuptables!O21*10^-6) -> 170.746917 | P26: V | S26: =(SQRT(2*('QR Design Tool'!C19*10^-6)*((('QR Design Tool'!C19*10^-6)*Vac_min^2)-Pin_est*Lookuptables!O19)))/('QR Design Tool'!C19*10^-6) -> 170.746917
E27: 150 | F27: 160 | G27: 178 | H27: 182 | N27: t1_1 | O27: =(1/47)/(2*PI())*ASIN((O26)/Vbulkmin) -> 0.002779672418 | P27: s | S27: =(1/fline)/(2*PI())*ASIN((S26)/Vbulkmin) -> 0.002779672418
E28: 160 | F28: 180 | G28: 182 | H28: 187 | N28: t3_1 | O28: =((1/47)/2)+O27 -> 0.01341797029 | P28: s | S28: =((1/fline)/2)+S27 -> 0.01341797029
E29: 180 | F29: 200 | G29: 187 | H29: 191 | N29: t2_1 | O29: =((1/47)/4) -> 0.005319148936 | P29: s | S29: =((1/fline)/4) -> 0.005319148936
E30: 200 | F30: 220 | G30: 191 | H30: 196 | N30: tdischarge_1 | O30: =O28-(O29) -> 0.008098821354 | P30: s | S30: =S28-(S29) -> 0.008098821354
E31: 220 | F31: 240 | G31: 196 | H31: 200 | N31: Cin_1 | O31: =(2*Pin_est*O30)/((Vbulkmin^2)-(O26)^2)*10^12 -> 67235402.91 | P31: pF | S31: =(2*Pin_est*S30)/((Vbulkmin^2)-(S26)^2)*10^12 -> 67235402.91
E32: 240 | F32: 270 | G32: 200 | H32: 205 | O32: =(IF(O31<10000,O33*10^INT(LOG(O31)),O34*10^INT(LOG(O31))))*10^-6 -> 68 | P32: uF | S32: =(IF(S31<10000,S33*10^INT(LOG(S31)),S34*10^INT(LOG(S31))))*10^-6 -> 68
E33: 270 | F33: 300 | G33: 205 | H33: 210 | O33: =IF((10^(LOG(O31)-INT(LOG(O31))))-VLOOKUP((10^(LOG(O31)-INT(LOG(O31)))),c_s1:C_f1,1)<VLOOKUP((10^(LOG(O31)-INT(LOG(O31)))),c_s1:C_f1,2)-(10^(LOG(O31)-INT(LOG(O31)))),VLOOKUP((10^(LOG(O31)-INT(LOG(O31)))),c_s1:C_f1,1),VLOOKUP((10^(LOG(O31)-INT(LOG(O31)))),c_s1:C_f1,2)) -> 6.8 | S33: =IF((10^(LOG(S31)-INT(LOG(S31))))-VLOOKUP((10^(LOG(S31)-INT(LOG(S31)))),c_s1:C_f1,1)<VLOOKUP((10^(LOG(S31)-INT(LOG(S31)))),c_s1:C_f1,2)-(10^(LOG(S31)-INT(LOG(S31)))),VLOOKUP((10^(LOG(S31)-INT(LOG(S31)))),c_s1:C_f1,1),VLOOKUP((10^(LOG(S31)-INT(LOG(S31)))),c_s1:C_f1,2)) -> 6.8
E34: 300 | F34: 330 | G34: 210 | H34: 215 | O34: =IF((10^(LOG(O31)-INT(LOG(O31))))-VLOOKUP((10^(LOG(O31)-INT(LOG(O31)))),C_s2:C_f2,1)<VLOOKUP((10^(LOG(O31)-INT(LOG(O31)))),C_s2:C_f2,2)-(10^(LOG(O31)-INT(LOG(O31)))),VLOOKUP((10^(LOG(O31)-INT(LOG(O31)))),C_s2:C_f2,1),VLOOKUP((10^(LOG(O31)-INT(LOG(O31)))),C_s2:C_f2,2)) -> 6.8 | S34: =IF((10^(LOG(S31)-INT(LOG(S31))))-VLOOKUP((10^(LOG(S31)-INT(LOG(S31)))),C_s2:C_f2,1)<VLOOKUP((10^(LOG(S31)-INT(LOG(S31)))),C_s2:C_f2,2)-(10^(LOG(S31)-INT(LOG(S31)))),VLOOKUP((10^(LOG(S31)-INT(LOG(S31)))),C_s2:C_f2,1),VLOOKUP((10^(LOG(S31)-INT(LOG(S31)))),C_s2:C_f2,2)) -> 6.8
E35: 330 | F35: 360 | G35: 215 | H35: 221
E36: 360 | F36: 390 | G36: 221 | H36: 226 | N36: Second iteration
E37: 390 | F37: 430 | G37: 226 | H37: 232 | N37: VBULKmin_2 | O37: =(SQRT(2*(O21*10^-6)*(((O21*10^-6)*Vac_min^2)-Pin_est*O30)))/(Lookuptables!O21*10^-6) -> 171.5777784 | P37: V | S37: =(SQRT(2*('QR Design Tool'!C19*10^-6)*((('QR Design Tool'!C19*10^-6)*Vac_min^2)-Pin_est*S30)))/('QR Design Tool'!C19*10^-6) -> 171.5777784
E38: 430 | F38: 470 | G38: 232 | H38: 237 | N38: t1_2 | O38: =(1/47)/(2*PI())*ASIN((O37)/Vbulkmin) -> 0.002797412446 | P38: s | S38: =(1/fline)/(2*PI())*ASIN((S37)/Vbulkmin) -> 0.002797412446
E39: 470 | F39: 510 | G39: 237 | H39: 243 | N39: t3_2 | O39: =((1/47)/2)+O38 -> 0.01343571032 | P39: s | S39: =((1/fline)/2)+S38 -> 0.01343571032
E40: 510 | F40: 560 | G40: 243 | H40: 249 | N40: t2_2 | O40: =((1/47)/4) -> 0.005319148936 | P40: s | S40: =((1/fline)/4) -> 0.005319148936
E41: 560 | F41: 620 | G41: 249 | H41: 255 | N41: tdischarge_2 | O41: =O39-(O40) -> 0.008116561383 | P41: s | S41: =S39-(S40) -> 0.008116561383
E42: 620 | F42: 680 | G42: 255 | H42: 261 | N42: Cin_2 | O42: =(2*Pin_est*(O41/(Vbulkmin^2-(O37)^2)))*10^12 -> 68148950.31 | P42: pF | S42: =(2*Pin_est*(S41/(Vbulkmin^2-(S37)^2)))*10^12 -> 68148950.31
E43: 680 | F43: 750 | G43: 261 | H43: 267 | O43: =(IF(O42<10000,O44*10^INT(LOG(O42)),O45*10^INT(LOG(O42))))*10^-6 -> 68 | P43: uF | S43: =(IF(S42<10000,S44*10^INT(LOG(S42)),S45*10^INT(LOG(S42))))*10^-6 -> 68
E44: 750 | F44: 820 | G44: 267 | H44: 274 | O44: =IF((10^(LOG(O42)-INT(LOG(O42))))-VLOOKUP((10^(LOG(O42)-INT(LOG(O42)))),c_s1:C_f1,1)<VLOOKUP((10^(LOG(O42)-INT(LOG(O42)))),c_s1:C_f1,2)-(10^(LOG(O42)-INT(LOG(O42)))),VLOOKUP((10^(LOG(O42)-INT(LOG(O42)))),c_s1:C_f1,1),VLOOKUP((10^(LOG(O42)-INT(LOG(O42)))),c_s1:C_f1,2)) -> 6.8 | S44: =IF((10^(LOG(S42)-INT(LOG(S42))))-VLOOKUP((10^(LOG(S42)-INT(LOG(S42)))),c_s1:C_f1,1)<VLOOKUP((10^(LOG(S42)-INT(LOG(S42)))),c_s1:C_f1,2)-(10^(LOG(S42)-INT(LOG(S42)))),VLOOKUP((10^(LOG(S42)-INT(LOG(S42)))),c_s1:C_f1,1),VLOOKUP((10^(LOG(S42)-INT(LOG(S42)))),c_s1:C_f1,2)) -> 6.8
E45: 820 | F45: 910 | G45: 274 | H45: 280 | O45: =IF((10^(LOG(O42)-INT(LOG(O42))))-VLOOKUP((10^(LOG(O42)-INT(LOG(O42)))),C_s2:C_f2,1)<VLOOKUP((10^(LOG(O42)-INT(LOG(O42)))),C_s2:C_f2,2)-(10^(LOG(O42)-INT(LOG(O42)))),VLOOKUP((10^(LOG(O42)-INT(LOG(O42)))),C_s2:C_f2,1),VLOOKUP((10^(LOG(O42)-INT(LOG(O42)))),C_s2:C_f2,2)) -> 6.8 | S45: =IF((10^(LOG(S42)-INT(LOG(S42))))-VLOOKUP((10^(LOG(S42)-INT(LOG(S42)))),C_s2:C_f2,1)<VLOOKUP((10^(LOG(S42)-INT(LOG(S42)))),C_s2:C_f2,2)-(10^(LOG(S42)-INT(LOG(S42)))),VLOOKUP((10^(LOG(S42)-INT(LOG(S42)))),C_s2:C_f2,1),VLOOKUP((10^(LOG(S42)-INT(LOG(S42)))),C_s2:C_f2,2)) -> 6.8
E46: 910 | F46: 1000 | G46: 280 | H46: 287
E47: E48 | G47: 287 | H47: 294 | N47: Third iteration
E48: 100 | F48: 105 | G48: 294 | H48: 301 | N48: VBULKmin_3 | O48: =(SQRT(2*(O21*10^-6)*(((O21*10^-6)*Vac_min^2)-Pin_est*O41)))/(Lookuptables!O21*10^-6) -> 171.4180524 | P48: V | S48: =(SQRT(2*('QR Design Tool'!C19*10^-6)*((('QR Design Tool'!C19*10^-6)*Vac_min^2)-Pin_est*S41)))/('QR Design Tool'!C19*10^-6) -> 171.4180524
E49: 105 | F49: 110 | G49: 301 | H49: 309 | N49: t1_3 | O49: =(1/47)/(2*PI())*ASIN((O48)/Vbulkmin) -> 0.002793994271 | P49: s | S49: =(1/fline)/(2*PI())*ASIN((S48)/Vbulkmin) -> 0.002793994271
E50: 110 | F50: 115 | G50: 309 | H50: 316 | N50: t3_3 | O50: =((1/47)/2)+O49 -> 0.01343229214 | P50: s | S50: =((1/fline)/2)+S49 -> 0.01343229214
E51: 115 | F51: 121 | G51: 316 | H51: 324 | N51: t2_3 | O51: =((1/47)/4) -> 0.005319148936 | P51: s | S51: =((1/fline)/4) -> 0.005319148936
E52: 121 | F52: 127 | G52: 324 | H52: 332 | N52: tdischarge_3 | O52: =O50-(O51) -> 0.008113143207 | P52: s | S52: =S50-(S51) -> 0.008113143207
E53: 127 | F53: 133 | G53: 332 | H53: 340 | N53: Cin_3 | O53: =(2*Pin_est*(O52/(Vbulkmin^2-(O48)^2)))*10^12 -> 67971362.76 | P53: pF | S53: =(2*Pin_est*(S52/(Vbulkmin^2-(S48)^2)))*10^12 -> 67971362.76
E54: 133 | F54: 140 | G54: 340 | H54: 348 | O54: =(IF(O53<10000,O55*10^INT(LOG(O53)),O56*10^INT(LOG(O53))))*10^-6 -> 68 | P54: uF | S54: =(IF(S53<10000,S55*10^INT(LOG(S53)),S56*10^INT(LOG(S53))))*10^-6 -> 68
E55: 140 | F55: 147 | G55: 348 | H55: 357 | O55: =IF((10^(LOG(O53)-INT(LOG(O53))))-VLOOKUP((10^(LOG(O53)-INT(LOG(O53)))),c_s1:C_f1,1)<VLOOKUP((10^(LOG(O53)-INT(LOG(O53)))),c_s1:C_f1,2)-(10^(LOG(O53)-INT(LOG(O53)))),VLOOKUP((10^(LOG(O53)-INT(LOG(O53)))),c_s1:C_f1,1),VLOOKUP((10^(LOG(O53)-INT(LOG(O53)))),c_s1:C_f1,2)) -> 6.8 | S55: =IF((10^(LOG(S53)-INT(LOG(S53))))-VLOOKUP((10^(LOG(S53)-INT(LOG(S53)))),c_s1:C_f1,1)<VLOOKUP((10^(LOG(S53)-INT(LOG(S53)))),c_s1:C_f1,2)-(10^(LOG(S53)-INT(LOG(S53)))),VLOOKUP((10^(LOG(S53)-INT(LOG(S53)))),c_s1:C_f1,1),VLOOKUP((10^(LOG(S53)-INT(LOG(S53)))),c_s1:C_f1,2)) -> 6.8
E56: 147 | F56: 154 | G56: 357 | H56: 365 | O56: =IF((10^(LOG(O53)-INT(LOG(O53))))-VLOOKUP((10^(LOG(O53)-INT(LOG(O53)))),C_s2:C_f2,1)<VLOOKUP((10^(LOG(O53)-INT(LOG(O53)))),C_s2:C_f2,2)-(10^(LOG(O53)-INT(LOG(O53)))),VLOOKUP((10^(LOG(O53)-INT(LOG(O53)))),C_s2:C_f2,1),VLOOKUP((10^(LOG(O53)-INT(LOG(O53)))),C_s2:C_f2,2)) -> 6.8 | S56: =IF((10^(LOG(S53)-INT(LOG(S53))))-VLOOKUP((10^(LOG(S53)-INT(LOG(S53)))),C_s2:C_f2,1)<VLOOKUP((10^(LOG(S53)-INT(LOG(S53)))),C_s2:C_f2,2)-(10^(LOG(S53)-INT(LOG(S53)))),VLOOKUP((10^(LOG(S53)-INT(LOG(S53)))),C_s2:C_f2,1),VLOOKUP((10^(LOG(S53)-INT(LOG(S53)))),C_s2:C_f2,2)) -> 6.8
E57: 154 | F57: 162 | G57: 365 | H57: 374
E58: 162 | F58: 169 | G58: 374 | H58: 383 | N58: VBULKmin | O58: =(SQRT(2*(O21*10^-6)*(((O21*10^-6)*Vac_min^2)-Pin_est*O52)))/(Lookuptables!O21*10^-6) -> 171.4488402 | P58: V | S58: =(SQRT(2*('QR Design Tool'!C19*10^-6)*((('QR Design Tool'!C19*10^-6)*Vac_min^2)-Pin_est*S52)))/('QR Design Tool'!C19*10^-6) -> 171.4488402 | T58: V
E59: 169 | F59: 178 | G59: 383 | H59: 392
E60: 178 | F60: 187 | G60: 392 | H60: 402
E61: 187 | F61: 196 | G61: 402 | H61: 412
E62: 196 | F62: 205 | G62: 412 | H62: 422
E63: 205 | F63: 215 | G63: 422 | H63: 432
E64: 215 | F64: 226 | G64: 432 | H64: 442
E65: 226 | F65: 237 | G65: 442 | H65: 453
E66: 237 | F66: 249 | G66: 453 | H66: 464
E67: 249 | F67: 261 | G67: 464 | H67: 475
E68: 261 | F68: 274 | G68: 475 | H68: 487
E69: 274 | F69: 287 | G69: 487 | H69: 499
E70: 287 | F70: 301 | G70: 499 | H70: 511
E71: 301 | F71: 316 | G71: 511 | H71: 523
E72: 316 | F72: 332 | G72: 523 | H72: 536
E73: 332 | F73: 348 | G73: 536 | H73: 549
E74: 348 | F74: 365 | G74: 549 | H74: 562
E75: 365 | F75: 383 | G75: 562 | H75: 576
E76: 383 | F76: 402 | G76: 576 | H76: 590
E77: 402 | F77: 422 | G77: 590 | H77: 604
E78: 422 | F78: 442 | G78: 604 | H78: 619
E79: 442 | F79: 464 | G79: 619 | H79: 634
E80: 464 | F80: 487 | G80: 634 | H80: 649
E81: 487 | F81: 511 | G81: 649 | H81: 665
E82: 511 | F82: 536 | G82: 665 | H82: 681
E83: 536 | F83: 562 | G83: 681 | H83: 698
E84: 562 | F84: 590 | G84: 698 | H84: 715
E85: 590 | F85: 619 | G85: 715 | H85: 732
E86: 619 | F86: 649 | G86: 732 | H86: 750
E87: 649 | F87: 681 | G87: 750 | H87: 768
E88: 681 | F88: 715 | G88: 768 | H88: 787
E89: 715 | F89: 750 | G89: 787 | H89: 806
E90: 750 | F90: 787 | G90: 806 | H90: 825
E91: 787 | F91: 825 | G91: 825 | H91: 845
E92: 825 | F92: 866 | G92: 845 | H92: 866
E93: 866 | F93: 909 | G93: 866 | H93: 887
E94: 909 | F94: 953 | G94: 887 | H94: 909
E95: 953 | F95: 1000 | G95: 909 | H95: 931
G96: 931 | H96: 953
G97: 953 | H97: 976
G98: 976 | H98: 1000

Sheet Sheet1
